{"text_format":"1","workbook":"xlsx","n_sheets":7,"sheets":["Points","Accueil","Inscrits","1","Final","Classement","Feuil1"],"not_rendered":{"charts":0,"images":1,"macros":1,"external_links":0,"defined_names":66,"comments":2,"pivot_tables":0},"unopened":[],"bounds":{"document_bytes":16777216,"sheet_cells":100000,"rows_first":2000,"rows_last":500,"rows_between":2000,"halvings":0,"cell_chars":16384,"cell_head_chars":4096},"cells_cut":0,"cells_raw":0,"read":"whole","date_system":"1900"}

{"sheet":"Points","index":0,"n_rows":12,"n_cols":4,"rows_kept":12,"cut":false,"hidden":false,"merged":[]}
["Place","R1","R2","R3"]
[1,200,142,93]
[2,180,125,79]
[3,161,109,66]
[4,161,109,66]
[5,143,94,54]
[6,143,94,54]
[7,126,80,43]
[8,126,80,43]
["FNE",-50,-35,-20]
["FE",0,0,0]
["A",0,0,0]

{"sheet":"Accueil","index":1,"n_rows":128,"n_cols":7,"rows_kept":128,"cut":false,"hidden":false,"merged":[[1,2,1,6],[24,3,24,6],[25,3,25,6],[15,2,15,6]]}
["A"]
["F",null,"INFOS UTILES POUR CE TOURNOI"]
[0]
[1,null,"LIGUE","Auvrgne-Rhône-Alpes",null,"SAISON","2018/2019"]
[2]
[3,null,"DATE","2018-10-20",null,"TOURNOI","N1"]
[4]
[5,null,"CLUB","Billard Club Lyonnais 8 Pool",null,"DIVISION","R1"]
[6]
[7,null,"VILLE DU CLUB","LYON",null,"NB JOUEURS",6]
[8]
[9,null,"Nombre de joueurs\nMontants de Division",0]
[10]
[11,null,"Nombre de joueurs\nDescendants de Division",0,null,"Nombre de Billards\n8 Pool",0]
[12]
[13,null,"DISTANCES DES MATCHS"]
[14]
[15,null,"Nb Parties Gagnantes\ndans les Poules\n(côté gagnant)",3,null,"Nb Parties Gagnantes\ndans les Poules\n(côté perdant)",3]
[16]
[17]
[18]
[19,null,"Nb Parties Gagnantes\nen 1/2 de finale",4,null,"Nb Parties Gagnantes\nen Finale",5]
[20]
[21]
[22]
[23]
[24]
[25]
[26]
[27]
[28]
[29]
[30]
[31]
[32]
[33]
[34]
[35]
[36]
[37]
[38]
[39]
[40]
[41]
[42]
[]
[]
[]
[]
[]
[]
[]
[]
[]
[]
[]
[]
[]
[]
[]
[]
[]
[]
[]
[]
[]
[]
[]
[]
[]
[]
[]
[]
[]
[]
[]
[]
[]
[]
[]
[]
[]
[]
[]
[]
[]
[]
[]
[]
[]
[]
[]
[]
[]
[]
[]
[]
[]
[]
[]
[]
[]
[]
[]
[]
[]
[]
[]
[]
[]
[]
[]
[]
[]
[]
[]
[]
[]
[]
[]
[]
[]
[]
[]
[]
[]
[]
["DAMIENFFB8POOL"]

{"sheet":"Inscrits","index":2,"n_rows":32,"n_cols":12,"rows_kept":32,"cut":false,"hidden":false,"merged":[[0,11,1,11],[8,11,9,11],[16,11,18,11],[25,11,26,11]]}
["N° Tirage","Nom du Joueur","Classement","Club","N° Licence","Forfait\nNon Excusé","Forfait\nExcusé","Abandon",1,"X",null,1]
[1,{"$f":"IFERROR(VLOOKUP(E2,Feuil1!A:C,2,FALSE),\"En Cours\")","v":"BERGNES LENNY"},1,{"$f":"IFERROR(VLOOKUP(E2,Feuil1!$A$1:$C$973,3,FALSE),\"En Cours\")","v":"BILLARD CLUB PONTOIS"},"155901H",null,"-",null,2,"-"]
[5,{"$f":"IFERROR(VLOOKUP(E3,Feuil1!A:C,2,FALSE),\"En Cours\")","v":"GELIBERT MARGAUX"},2,{"$f":"IFERROR(VLOOKUP(E3,Feuil1!$A$1:$C$973,3,FALSE),\"En Cours\")","v":"ACADEMIE DE BILLARD DE LA VALSERINE"},"159123K",null,"-",null,3]
[2,{"$f":"IFERROR(VLOOKUP(E4,Feuil1!A:C,2,FALSE),\"En Cours\")","v":"KUSAR TONY"},1,{"$f":"IFERROR(VLOOKUP(E4,Feuil1!$A$1:$C$973,3,FALSE),\"En Cours\")","v":"BILLARD CLUB DE CLARAFOND ARCINE"},"155700P",null,"-",null,4]
[6,{"$f":"IFERROR(VLOOKUP(E5,Feuil1!A:C,2,FALSE),\"En Cours\")","v":"TORNIER JORDAN"},"NC",{"$f":"IFERROR(VLOOKUP(E5,Feuil1!$A$1:$C$973,3,FALSE),\"En Cours\")","v":"BILLARD CLUB DE CLARAFOND ARCINE"},"166264X",null,"-",null,5]
[3,{"$f":"IFERROR(VLOOKUP(E6,Feuil1!A:C,2,FALSE),\"En Cours\")","v":"VALLOT ROMAIN"},1,{"$f":"IFERROR(VLOOKUP(E6,Feuil1!$A$1:$C$973,3,FALSE),\"En Cours\")","v":"BILLARD CLUB DE BOURG EN BRESSE"},"156334D",null,"-",null,6]
[4,{"$f":"IFERROR(VLOOKUP(E7,Feuil1!A:C,2,FALSE),\"En Cours\")","v":"DUPRE RAMBAUD NATAEL"},1,{"$f":"IFERROR(VLOOKUP(E7,Feuil1!$A$1:$C$973,3,FALSE),\"En Cours\")","v":"LES SQUALES"},"149436F",null,"-"]
[]
[null,null,null,null,null,null,null,null,null,null,null,2]
[]
[]
[]
[]
[]
[]
[]
[null,null,null,null,null,null,null,null,null,null,null,"OU"]
[]
[]
[]
[]
[]
[]
[]
[null,null,{"$f":"IF(B9=\"\",\"\",VLOOKUP(B9,#REF!,3,FALSE))","v":""}]
[null,null,{"$f":"IF(B10=\"\",\"\",VLOOKUP(B10,#REF!,3,FALSE))","v":""},null,null,null,null,null,null,null,null,3]
[null,null,{"$f":"IF(B11=\"\",\"\",VLOOKUP(B11,#REF!,3,FALSE))","v":""}]
[null,null,{"$f":"IF(B12=\"\",\"\",VLOOKUP(B12,#REF!,3,FALSE))","v":""}]
[null,null,{"$f":"IF(B13=\"\",\"\",VLOOKUP(B13,#REF!,3,FALSE))","v":""}]
[null,null,{"$f":"IF(B14=\"\",\"\",VLOOKUP(B14,#REF!,3,FALSE))","v":""}]
[null,null,{"$f":"IF(B15=\"\",\"\",VLOOKUP(B15,#REF!,3,FALSE))","v":""}]
[null,null,{"$f":"IF(B16=\"\",\"\",VLOOKUP(B16,#REF!,3,FALSE))","v":""}]

{"sheet":"1","index":3,"n_rows":21,"n_cols":45,"rows_kept":21,"cut":false,"hidden":false,"merged":[[20,9,20,17],[12,1,12,2],[0,9,0,17],[1,42,1,45],[11,42,11,45],[10,20,10,21]]}
[null,null,null,null,null,null,null,null,null,{"$f":"\"Match en \"&Accueil!D18&\" manches gagnantes coté gagnant\"","v":"Match en 3 manches gagnantes coté gagnant"}]
[null,null,null,null,null,null,null,null,null,null,null,null,null,null,null,null,null,null,null,null,null,null,null,null,null,null,null,null,null,null,null,null,null,null,null,null,null,null,null,null,null,null,"QUALIFIES"]
[null,null,null,null,null,null,null,null,null,null,"P1",1,{"$f":"IF(IF(ISNA(VLOOKUP(L3,Inscrits!$A$2:$C$23,2,FALSE)),\"\",VLOOKUP(L3,Inscrits!$A$2:$C$23,2,FALSE))=0,\"\",IF(ISNA(VLOOKUP(L3,Inscrits!$A$2:$C$23,2,FALSE)),\"\",VLOOKUP(L3,Inscrits!$A$2:$C$23,2,FALSE)))","v":"BERGNES LENNY"},{"$f":"IF(IF(ISNA(VLOOKUP(L3,Inscrits!$A$2:$C$23,3,FALSE)),\"\",\"(\"&(VLOOKUP(L3,Inscrits!$A$2:$C$23,3,FALSE))&\")\")=\"()\",\"\",IF(ISNA(VLOOKUP(L3,Inscrits!$A$2:$C$23,3,FALSE)),\"\",\"(\"&(VLOOKUP(L3,Inscrits!$A$2:$C$23,3,FALSE))&\")\"))","v":"(1)"},null,null,"G1",null,null,null,null,null,null,null,null,null,null,null,"G","P","G","P","G","P","G","P","G","P","G","P","Ga",null,null,"NOM","Ga"]
[null,null,null,null,null,null,null,null,null,null,null,null,"Match 1 - Billard",null,null,null,{"$f":"M3","v":"BERGNES LENNY"},{"$f":"N3","v":"(1)"},null,null,null,null,null,null,1,{"$f":"IF(U6=\"\",\"\",IF(U6=Q4,Q4,Q8))","v":""},null,{"$f":"M3","v":"BERGNES LENNY"},{"$f":"IF(AB4=M3,IF(O5=\"F\",\"\",O3),0)","v":0},{"$f":"IF(AB4=M3,IF(O3=\"F\",\"\",O5),0)","v":0},{"$f":"IF(AB4=Q4,IF(S8=\"F\",\"\",S4),0)","v":0},{"$f":"IF(AB4=Q4,IF(S4=\"F\",\"\",S8),0)","v":0},{"$f":"IF(AB4=J4,IF(I8=\"F\",\"\",I4),0)","v":0},{"$f":"IF(AB4=J4,IF(I4=\"F\",\"\",I8),0)","v":0},{"$f":"IF(AB4=F6,IF(E10=\"F\",\"\",E6),0)","v":0},{"$f":"IF(AB4=F6,IF(E6=\"F\",\"\",E10),0)","v":0},{"$f":"IF(AB4=F20,IF(E16=\"F\",\"\",E20),0)","v":0},{"$f":"IF(AB4=F20,IF(E20=\"F\",\"\",E16),0)","v":0},{"$f":"SUM(AC4,AE4,AG4,AI4,AK4)","v":0},0,{"$f":"AM4-AN4","v":0},null,null,{"$f":"Z4","v":""},{"$f":"IF(AR4=\"\",\"\",(VLOOKUP(AR4,AB4:AO17,14,FALSE)))","v":""}]
[null,null,null,null,null,null,"G7",null,null,null,null,null,null,null,null,null,null,null,null,null,"G5",null,null,null,3,{"$f":"IF(B8=\"\",\"\",IF(B8=F6,F6,F10))","v":""},null,{"$f":"M5","v":0},{"$f":"IF(AB5=M5,IF(O3=\"F\",\"\",O5),0)","v":0},{"$f":"IF(AB5=M5,IF(O5=\"F\",\"\",O3),0)","v":0},{"$f":"IF(AB5=Q4,IF(S8=\"F\",\"\",S4),0)","v":0},{"$f":"IF(AB5=Q4,IF(S4=\"F\",\"\",S8),0)","v":0},{"$f":"IF(AB5=J4,IF(I8=\"F\",\"\",I4),0)","v":0},{"$f":"IF(AB5=J4,IF(I4=\"F\",\"\",I8),0)","v":0},{"$f":"IF(AB5=F6,IF(E10=\"F\",\"\",E6),0)","v":0},{"$f":"IF(AB5=F6,IF(E6=\"F\",\"\",E10),0)","v":0},{"$f":"IF(AB5=F20,IF(E16=\"F\",\"\",E20),0)","v":0},{"$f":"IF(AB5=F20,IF(E20=\"F\",\"\",E16),0)","v":0},0,0,{"$f":"AM5-AN5","v":0},null,null,{"$f":"Z14","v":""},{"$f":"IF(AR5=\"\",\"\",(VLOOKUP(AR5,AB4:AO17,14,FALSE)))","v":""}]
[null,null,null,null,null,{"$f":"J8","v":""},{"$f":"K8","v":""},null,null,"Match 7 - Billard",null,null,null,null,null,null,"Match 5 - Billard",null,null,null,{"$f":"IF(OR(S4=\"F\",S4=\"A\"),Q8,IF(OR(S8=\"F\",S8=\"A\"),Q4,IF(S4=S8,\"\",(IF(S4>S8,Q4,Q8)))))","v":""},{"$f":"IF(OR(S4=\"F\",S4=\"A\"),R8,IF(OR(S8=\"F\",S8=\"A\"),R4,IF(S4=S8,\"\",(IF(S4>S8,R4,R8)))))","v":""},"A",null,5,{"$f":"IF(B8=\"\",\"\",IF(B8=F6,F10,F6))","v":""},null,{"$f":"M7","v":"GELIBERT MARGAUX"},{"$f":"IF(AB6=M7,IF(O9=\"F\",\"\",O7),0)","v":0},{"$f":"IF(AB6=M7,IF(O7=\"F\",\"\",O9),0)","v":0},{"$f":"IF(AB6=Q8,IF(S4=\"F\",\"\",S8),0)","v":0},{"$f":"IF(AB6=Q8,IF(S8=\"F\",\"\",S4),0)","v":0},{"$f":"IF(AB6=J8,IF(I4=\"F\",\"\",I8),0)","v":0},{"$f":"IF(AB6=J8,IF(I8=\"F\",\"\",I4),0)","v":0},{"$f":"IF(AB6=F6,IF(E10=\"F\",\"\",E6),0)","v":0},{"$f":"IF(AB6=F6,IF(E6=\"F\",\"\",E10),0)","v":0},{"$f":"IF(AB6=F20,IF(E16=\"F\",\"\",E20),0)","v":0},{"$f":"IF(AB6=F20,IF(E20=\"F\",\"\",E16),0)","v":0},0,0,{"$f":"AM6-AN6","v":0},null,null,{"$f":"Z5","v":""},{"$f":"IF(AR6=\"\",\"\",(VLOOKUP(AR6,AB4:AO17,14,FALSE)))","v":""}]
[null,null,"G9",null,null,null,null,null,null,null,null,5,{"$f":"IF(IF(ISNA(VLOOKUP(L7,Inscrits!$A$2:$C$23,2,FALSE)),\"\",VLOOKUP(L7,Inscrits!$A$2:$C$23,2,FALSE))=0,\"\",IF(ISNA(VLOOKUP(L7,Inscrits!$A$2:$C$23,2,FALSE)),\"\",VLOOKUP(L7,Inscrits!$A$2:$C$23,2,FALSE)))","v":"GELIBERT MARGAUX"},{"$f":"IF(IF(ISNA(VLOOKUP(L7,Inscrits!$A$2:$C$23,3,FALSE)),\"\",\"(\"&(VLOOKUP(L7,Inscrits!$A$2:$C$23,3,FALSE))&\")\")=\"()\",\"\",IF(ISNA(VLOOKUP(L7,Inscrits!$A$2:$C$23,3,FALSE)),\"\",\"(\"&(VLOOKUP(L7,Inscrits!$A$2:$C$23,3,FALSE))&\")\"))","v":"(2)"},null,null,null,null,null,null,null,null,null,null,7,{"$f":"IF(F6=\"\",\"\",IF(F6=J4,J8,J4))","v":""},null,{"$f":"M9","v":"DUPRE RAMBAUD NATAEL"},{"$f":"IF(AB7=M9,IF(O7=\"F\",\"\",O9),0)","v":0},{"$f":"IF(AB7=M9,IF(O9=\"F\",\"\",O7),0)","v":0},{"$f":"IF(AB7=Q8,IF(S4=\"F\",\"\",S8),0)","v":0},{"$f":"IF(AB7=Q8,IF(S8=\"F\",\"\",S4),0)","v":0},{"$f":"IF(AB7=J8,IF(I4=\"F\",\"\",I8),0)","v":0},{"$f":"IF(AB7=J8,IF(I8=\"F\",\"\",I4),0)","v":0},{"$f":"IF(AB7=F6,IF(E10=\"F\",\"\",E6),0)","v":0},{"$f":"IF(AB7=F6,IF(E6=\"F\",\"\",E10),0)","v":0},{"$f":"IF(AB7=F20,IF(E16=\"F\",\"\",E20),0)","v":0},{"$f":"IF(AB7=F20,IF(E20=\"F\",\"\",E16),0)","v":0},0,0,{"$f":"AM7-AN7","v":0},null,null,{"$f":"Z15","v":""},{"$f":"IF(AR7=\"\",\"\",(VLOOKUP(AR7,AB4:AO17,14,FALSE)))","v":""}]
["S",{"$f":"IF(OR(E6=\"F\",E6=\"A\"),F10,IF(OR(E10=\"F\",E10=\"A\"),F6,IF(E6=E10,\"\",(IF(E6>E10,F6,F10)))))","v":""},{"$f":"IF(OR(E6=\"F\",E6=\"A\"),G10,IF(OR(E10=\"F\",E10=\"A\"),G6,IF(E6=E10,\"\",(IF(E6>E10,G6,G10)))))","v":""},null,null,"Match 9 - Billard",null,null,null,{"$f":"IF(OR(AND(O7=\"F\",O9=\"F\"),AND(O7=\"A\",O9=\"A\")),M9,IF(OR(O7=\"F\",O7=\"A\"),M7,IF(OR(O9=\"F\",O9=\"A\"),M9,IF(O7=O9,\"\",(IF(O7<O9,M7,M9))))))","v":""},{"$f":"IF(OR(AND(O7=\"F\",O9=\"F\"),AND(O7=\"A\",O9=\"A\")),N9,IF(OR(O7=\"F\",O7=\"A\"),N7,IF(OR(O9=\"F\",O9=\"A\"),N9,IF(O7=O9,\"\",(IF(O7<O9,N7,N9))))))","v":""},null,"Match 2 - Billard",null,null,null,{"$f":"IF(OR(AND(O7=\"F\",O9=\"F\"),AND(O7=\"A\",O9=\"A\")),M7,IF(OR(O7=\"F\",O7=\"A\"),M9,IF(OR(O9=\"F\",O9=\"A\"),M7,IF(O7=O9,\"\",(IF(O7>O9,M7,M9))))))","v":""},{"$f":"IF(OR(AND(O7=\"F\",O9=\"F\"),AND(O7=\"A\",O9=\"A\")),N7,IF(OR(O7=\"F\",O7=\"A\"),N9,IF(OR(O9=\"F\",O9=\"A\"),N7,IF(O7=O9,\"\",(IF(O7>O9,N7,N9))))))","v":""}]
[null,null,null,null,null,null,null,null,null,null,"P2",4,{"$f":"IF(IF(ISNA(VLOOKUP(L9,Inscrits!$A$2:$C$23,2,FALSE)),\"\",VLOOKUP(L9,Inscrits!$A$2:$C$23,2,FALSE))=0,\"\",IF(ISNA(VLOOKUP(L9,Inscrits!$A$2:$C$23,2,FALSE)),\"\",VLOOKUP(L9,Inscrits!$A$2:$C$23,2,FALSE)))","v":"DUPRE RAMBAUD NATAEL"},{"$f":"IF(IF(ISNA(VLOOKUP(L9,Inscrits!$A$2:$C$23,3,FALSE)),\"\",\"(\"&(VLOOKUP(L9,Inscrits!$A$2:$C$23,3,FALSE))&\")\")=\"()\",\"\",IF(ISNA(VLOOKUP(L9,Inscrits!$A$2:$C$23,3,FALSE)),\"\",\"(\"&(VLOOKUP(L9,Inscrits!$A$2:$C$23,3,FALSE))&\")\"))","v":"(1)"},null,null,"G2"]
[null,null,null,null,null,{"$f":"IF(OR(S14=\"F\",S14=\"A\"),Q14,IF(OR(S18=\"F\",S18=\"A\"),Q18,IF(S14=S18,\"\",(IF(S14<S18,Q14,Q18)))))","v":""},{"$f":"IF(OR(S14=\"F\",S14=\"A\"),R14,IF(OR(S18=\"F\",S18=\"A\"),R18,IF(S14=S18,\"\",(IF(S14<S18,R14,R18)))))","v":""}]
[null,null,null,null,null,null,"P6",null,null,null,null,null,null,null,null,null,null,null,null,null,"QUALIFIES"]
[null,null,null,null,null,null,null,null,null,null,null,null,null,null,null,null,null,null,null,null,null,null,null,null,null,null,null,null,null,null,null,null,null,null,null,null,null,null,null,null,null,null,"ELIMINES"]
[null,"QUALIFIES",null,null,null,null,null,null,null,null,"P3",3,{"$f":"IF(IF(ISNA(VLOOKUP(L13,Inscrits!$A$2:$C$23,2,FALSE)),\"\",VLOOKUP(L13,Inscrits!$A$2:$C$23,2,FALSE))=0,\"\",IF(ISNA(VLOOKUP(L13,Inscrits!$A$2:$C$23,2,FALSE)),\"\",VLOOKUP(L13,Inscrits!$A$2:$C$23,2,FALSE)))","v":"VALLOT ROMAIN"},{"$f":"IF(IF(ISNA(VLOOKUP(L13,Inscrits!$A$2:$C$23,3,FALSE)),\"\",\"(\"&(VLOOKUP(L13,Inscrits!$A$2:$C$23,3,FALSE))&\")\")=\"()\",\"\",IF(ISNA(VLOOKUP(L13,Inscrits!$A$2:$C$23,3,FALSE)),\"\",\"(\"&(VLOOKUP(L13,Inscrits!$A$2:$C$23,3,FALSE))&\")\"))","v":"(1)"},null,null,"G3",null,null,null,null,null,null,null,null,null,null,null,"G","P","G","P","G","P","G","P","G","P","G","P","Ga",null,null,"NOM","Ga"]
[null,null,null,null,null,null,null,null,null,{"$f":"IF(OR(AND(O13=\"F\",O15=\"F\"),AND(O13=\"A\",O15=\"A\")),M15,IF(OR(O13=\"F\",O13=\"A\"),M13,IF(OR(O15=\"F\",O15=\"A\"),M15,IF(O13=O15,\"\",(IF(O13<O15,M13,M15))))))","v":""},{"$f":"IF(OR(AND(O13=\"F\",O15=\"F\"),AND(O13=\"A\",O15=\"A\")),N15,IF(OR(O13=\"F\",O13=\"A\"),N13,IF(OR(O15=\"F\",O15=\"A\"),N15,IF(O13=O15,\"\",(IF(O13<O15,N13,N15))))))","v":""},null,"Match 3 - Billard",null,null,null,{"$f":"IF(OR(AND(O13=\"F\",O15=\"F\"),AND(O13=\"A\",O15=\"A\")),M13,IF(OR(O13=\"F\",O13=\"A\"),M15,IF(OR(O15=\"F\",O15=\"A\"),M13,IF(O13=O15,\"\",(IF(O13>O15,M13,M15))))))","v":""},{"$f":"IF(OR(AND(O13=\"F\",O15=\"F\"),AND(O13=\"A\",O15=\"A\")),N13,IF(OR(O13=\"F\",O13=\"A\"),N15,IF(OR(O15=\"F\",O15=\"A\"),N13,IF(O13=O15,\"\",(IF(O13>O15,N13,N15))))))","v":""},null,null,null,null,null,null,2,{"$f":"IF(U16=\"\",\"\",IF(U16=Q14,Q14,Q18))","v":""},null,{"$f":"M13","v":"VALLOT ROMAIN"},{"$f":"IF(AB14=M13,IF(O15=\"F\",\"\",O13),0)","v":0},{"$f":"IF(AB14=M13,IF(O13=\"F\",\"\",O15),0)","v":0},{"$f":"IF(AB14=Q14,IF(S18=\"F\",\"\",S14),0)","v":0},{"$f":"IF(AB14=Q14,IF(S14=\"F\",\"\",S18),0)","v":0},{"$f":"IF(AB14=J14,IF(I18=\"F\",\"\",I14),0)","v":0},{"$f":"IF(AB14=J14,IF(I14=\"F\",\"\",I18),0)","v":0},{"$f":"IF(AB14=F16,IF(E20=\"F\",\"\",E16),0)","v":0},{"$f":"IF(AB14=F16,IF(E16=\"F\",\"\",E20),0)","v":0},{"$f":"IF(AB14=F10,IF(E6=\"F\",\"\",E10),0)","v":0},{"$f":"IF(AB14=F10,IF(E10=\"F\",\"\",E6),0)","v":0},{"$f":"SUM(AC14,AE14,AG14,AI14,AK14)","v":0},0,{"$f":"AM14-AN14","v":0},null,null,{"$f":"Z6","v":""},{"$f":"IF(AR14=\"\",\"\",(VLOOKUP(AR14,AB4:AO17,14,FALSE)))","v":""}]
[null,null,null,null,null,null,"G8",null,null,null,null,6,{"$f":"IF(IF(ISNA(VLOOKUP(L15,Inscrits!$A$2:$C$23,2,FALSE)),\"\",VLOOKUP(L15,Inscrits!$A$2:$C$23,2,FALSE))=0,\"\",IF(ISNA(VLOOKUP(L15,Inscrits!$A$2:$C$23,2,FALSE)),\"\",VLOOKUP(L15,Inscrits!$A$2:$C$23,2,FALSE)))","v":"TORNIER JORDAN"},{"$f":"IF(IF(ISNA(VLOOKUP(L15,Inscrits!$A$2:$C$23,3,FALSE)),\"\",\"(\"&(VLOOKUP(L15,Inscrits!$A$2:$C$23,3,FALSE))&\")\")=\"()\",\"\",IF(ISNA(VLOOKUP(L15,Inscrits!$A$2:$C$23,3,FALSE)),\"\",\"(\"&(VLOOKUP(L15,Inscrits!$A$2:$C$23,3,FALSE))&\")\"))","v":"(NC)"},null,null,null,null,null,null,"G6",null,null,null,4,{"$f":"IF(B18=\"\",\"\",IF(B18=F16,F16,F20))","v":""},null,{"$f":"M15","v":"TORNIER JORDAN"},{"$f":"IF(AB15=M15,IF(O13=\"F\",\"\",O15),0)","v":0},{"$f":"IF(AB15=M15,IF(O15=\"F\",\"\",O13),0)","v":0},{"$f":"IF(AB15=Q14,IF(S18=\"F\",\"\",S14),0)","v":0},{"$f":"IF(AB15=Q14,IF(S14=\"F\",\"\",S18),0)","v":0},{"$f":"IF(AB15=J14,IF(I18=\"F\",\"\",I14),0)","v":0},{"$f":"IF(AB15=J14,IF(I14=\"F\",\"\",I18),0)","v":0},{"$f":"IF(AB15=F16,IF(E20=\"F\",\"\",E16),0)","v":0},{"$f":"IF(AB15=F16,IF(E16=\"F\",\"\",E20),0)","v":0},{"$f":"IF(AB15=F10,IF(E6=\"F\",\"\",E10),0)","v":0},{"$f":"IF(AB15=F10,IF(E10=\"F\",\"\",E6),0)","v":0},0,0,{"$f":"AM15-AN15","v":0},null,null,{"$f":"Z16","v":""},{"$f":"IF(AR15=\"\",\"\",(VLOOKUP(AR15,AB4:AO17,14,FALSE)))","v":""}]
[null,null,null,null,null,{"$f":"J14","v":""},{"$f":"K14","v":""},null,null,"Match 8 - Billard",null,null,null,null,null,null,"Match 6 - Billard",null,null,null,{"$f":"IF(OR(S14=\"F\",S14=\"A\"),Q18,IF(OR(S18=\"F\",S18=\"A\"),Q14,IF(S14=S18,\"\",(IF(S14>S18,Q14,Q18)))))","v":""},{"$f":"IF(OR(S14=\"F\",S14=\"A\"),R18,IF(OR(S18=\"F\",S18=\"A\"),R14,IF(S14=S18,\"\",(IF(S14>S18,R14,R18)))))","v":""},"B",null,6,{"$f":"IF(B18=\"\",\"\",IF(B18=F16,F20,F16))","v":""},null,{"$f":"M17","v":0},{"$f":"IF(AB16=M17,IF(O19=\"F\",\"\",O17),0)","v":0},{"$f":"IF(AB16=M17,IF(O17=\"F\",\"\",O19),0)","v":0},{"$f":"IF(AB16=Q18,IF(S14=\"F\",\"\",S18),0)","v":0},{"$f":"IF(AB16=Q18,IF(S18=\"F\",\"\",S14),0)","v":0},{"$f":"IF(AB16=J18,IF(I14=\"F\",\"\",I18),0)","v":0},{"$f":"IF(AB16=J18,IF(I18=\"F\",\"\",I14),0)","v":0},{"$f":"IF(AB16=F16,IF(E20=\"F\",\"\",E16),0)","v":0},{"$f":"IF(AB16=F16,IF(E16=\"F\",\"\",E20),0)","v":0},{"$f":"IF(AB16=F10,IF(E6=\"F\",\"\",E10),0)","v":0},{"$f":"IF(AB16=F10,IF(E10=\"F\",\"\",E6),0)","v":0},0,0,{"$f":"AM16-AN16","v":0}]
[null,null,"G10",null,null,null,null,null,null,null,null,null,null,null,null,null,null,null,null,null,null,null,null,null,8,{"$f":"IF(F16=\"\",\"\",IF(F16=J14,J18,J14))","v":""},null,{"$f":"M19","v":"KUSAR TONY"},{"$f":"IF(AB17=M19,IF(O17=\"F\",\"\",O19),0)","v":0},{"$f":"IF(AB17=M19,IF(O19=\"F\",\"\",O17),0)","v":0},{"$f":"IF(AB17=Q18,IF(S14=\"F\",\"\",S18),0)","v":0},{"$f":"IF(AB17=Q18,IF(S18=\"F\",\"\",S14),0)","v":0},{"$f":"IF(AB17=J18,IF(I14=\"F\",\"\",I18),0)","v":0},{"$f":"IF(AB17=J18,IF(I18=\"F\",\"\",I14),0)","v":0},{"$f":"IF(AB17=F16,IF(E20=\"F\",\"\",E16),0)","v":0},{"$f":"IF(AB17=F16,IF(E16=\"F\",\"\",E20),0)","v":0},{"$f":"IF(AB17=F10,IF(E6=\"F\",\"\",E10),0)","v":0},{"$f":"IF(AB17=F10,IF(E10=\"F\",\"\",E6),0)","v":0},0,{"$f":"SUM(AD17,AF17,AH17,AJ17,AL17)","v":0},{"$f":"AM17-AN17","v":0}]
["T",{"$f":"IF(OR(E16=\"F\",E16=\"A\"),F20,IF(OR(E20=\"F\",E20=\"A\"),F16,IF(E16=E20,\"\",(IF(E16>E20,F16,F20)))))","v":""},{"$f":"IF(OR(E16=\"F\",E16=\"A\"),G20,IF(OR(E20=\"F\",E20=\"A\"),G16,IF(E16=E20,\"\",(IF(E16>E20,G16,G20)))))","v":""},null,null,"Match 10 - Billard",null,null,null,null,null,null,"Match 4 - Billard",null,null,null,{"$f":"M19","v":"KUSAR TONY"},{"$f":"N19","v":"(1)"}]
[null,null,null,null,null,null,null,null,null,null,"P4",2,{"$f":"IF(IF(ISNA(VLOOKUP(L19,Inscrits!$A$2:$C$23,2,FALSE)),\"\",VLOOKUP(L19,Inscrits!$A$2:$C$23,2,FALSE))=0,\"\",IF(ISNA(VLOOKUP(L19,Inscrits!$A$2:$C$23,2,FALSE)),\"\",VLOOKUP(L19,Inscrits!$A$2:$C$23,2,FALSE)))","v":"KUSAR TONY"},{"$f":"IF(IF(ISNA(VLOOKUP(L19,Inscrits!$A$2:$C$23,3,FALSE)),\"\",\"(\"&(VLOOKUP(L19,Inscrits!$A$2:$C$23,3,FALSE))&\")\")=\"()\",\"\",IF(ISNA(VLOOKUP(L19,Inscrits!$A$2:$C$23,3,FALSE)),\"\",\"(\"&(VLOOKUP(L19,Inscrits!$A$2:$C$23,3,FALSE))&\")\"))","v":"(1)"},null,null,"G4"]
[null,null,null,null,null,{"$f":"IF(OR(S4=\"F\",S4=\"A\"),Q4,IF(OR(S8=\"F\",S8=\"A\"),Q8,IF(S4=S8,\"\",(IF(S4<S8,Q4,Q8)))))","v":""},{"$f":"IF(OR(S4=\"F\",S4=\"A\"),R4,IF(OR(S8=\"F\",S8=\"A\"),R8,IF(S4=S8,\"\",(IF(S4<S8,R4,R8)))))","v":""}]
[null,null,null,null,null,null,"P5",null,null,{"$f":"\"Match en \"&Accueil!G18&\" manches gagnantes coté perdant\"","v":"Match en 3 manches gagnantes coté perdant"}]

{"sheet":"Final","index":4,"n_rows":24,"n_cols":35,"rows_kept":24,"cut":false,"hidden":false,"merged":[[1,5,1,7],[0,1,0,3],[1,1,1,3],[0,13,0,15],[0,9,0,11],[0,5,0,7],[1,8,1,11],[1,13,1,16]]}
[null,"1/8 de finale",null,null,null,"1/4 de finale",null,null,null,"1/2 finale",null,null,null,"Finale"]
[null,{"$f":"\"(\"&Accueil!D20&\" manches)\"","v":"( manches)"},null,null,null,{"$f":"\"(\"&Accueil!G20&\" manches)\"","v":"( manches)"},null,null,{"$f":"\"Match en \"&Accueil!D22&\" manches gagnantes\"","v":"Match en 4 manches gagnantes"},null,null,null,null,{"$f":"\"Match en \"&Accueil!G22&\" manches gagnantes\"","v":"Match en 5 manches gagnantes"}]
[null,null,null,null,null,null,null,null,null,null,null,null,null,null,null,null,null,null,null,null,null,"JOUEURS","1/8","1/4","1/2","Finale","GA Final",null,"JOUEURS","GA Poules",null,"JOUEURS","GA Poules","GA Final","GA TOTAL"]
[null,null,null,null,null,null,null,null,null,null,null,null,null,null,null,null,null,null,null,null,null,{"$f":"J6","v":""},null,null,{"$f":"IF(AND(L6=\"A\",L12=\"A\"),0,IF(L6=\"A\",-L12,IF(L12=\"A\",L6,L6-L12)))","v":0},{"$f":"IF(N9=V4,IF(AND(P9=\"A\",P21=\"A\"),0,IF(OR(Y4>0,L12=\"A\"),IF(P9=\"A\",-P21,IF(P21=\"A\",P9,P9-P21)),0)),0)","v":0},{"$f":"SUM(W4:Z4)","v":0},null,{"$f":"'1'!AR4","v":""},{"$f":"'1'!AS4","v":""},null,{"$f":"IF(Inscrits!B2=0,\"\",Inscrits!B2)","v":"BERGNES LENNY"},{"$f":"VLOOKUP(AF4,$AC$4:$AD$11,2,FALSE)","v":{"$error":"#N/A"}},{"$f":"VLOOKUP(AF4,$V$4:$AA$23,6,FALSE)","v":{"$error":"#N/A"}},{"$f":"AG4+AH4","v":{"$error":"#N/A"}}]
[null,null,null,null,null,null,null,null,null,null,null,null,null,null,null,null,null,null,null,null,null,null,null,null,null,null,null,null,{"$f":"'1'!AR5","v":""},{"$f":"'1'!AS5","v":""},null,{"$f":"IF(Inscrits!B3=0,\"\",Inscrits!B3)","v":"GELIBERT MARGAUX"},{"$error":"#N/A"},{"$error":"#N/A"},{"$error":"#N/A"}]
[null,null,null,null,null,null,null,null,null,{"$f":"IF('1'!U6=0,\"\",'1'!U6)","v":""},{"$f":"IF('1'!V6=0,\"\",'1'!V6)","v":""},null,null,null,null,null,null,null,null,null,null,null,null,null,null,null,null,null,{"$f":"'1'!AR6","v":""},{"$f":"'1'!AS6","v":""},null,{"$f":"IF(Inscrits!B4=0,\"\",Inscrits!B4)","v":"KUSAR TONY"},{"$error":"#N/A"},{"$error":"#N/A"},{"$error":"#N/A"}]
[null,null,null,null,null,null,null,null,null,null,null,null,null,null,null,null,null,null,null,null,null,null,null,null,null,null,null,null,{"$f":"'1'!AR7","v":""},{"$f":"'1'!AS7","v":""},null,{"$f":"IF(Inscrits!B5=0,\"\",Inscrits!B5)","v":"TORNIER JORDAN"},{"$error":"#N/A"},{"$error":"#N/A"},{"$error":"#N/A"}]
[null,null,null,null,null,null,null,null,null,null,null,null,null,null,null,null,null,null,null,null,null,null,null,null,null,null,null,null,{"$f":"'1'!AR14","v":""},{"$f":"'1'!AS14","v":""},null,{"$f":"IF(Inscrits!B6=0,\"\",Inscrits!B6)","v":"VALLOT ROMAIN"},{"$error":"#N/A"},{"$error":"#N/A"},{"$error":"#N/A"}]
[null,null,null,null,null,null,null,null,null,"Match 1 - Billard",null,null,null,{"$f":"IF(AND(L6=\"A\",L12=\"A\"),J6,IF(L6=\"A\",J12,IF(L12=\"A\",J6,IF(L6=L12,\"\",(IF(L6>L12,J6,J12))))))","v":""},{"$f":"IF(AND(L6=\"A\",L12=\"A\"),K6,IF(L6=\"A\",K12,IF(L12=\"A\",K6,IF(L6=L12,\"\",(IF(L6>L12,K6,K12))))))","v":""},null,null,null,null,null,null,null,null,null,null,null,null,null,{"$f":"'1'!AR15","v":""},{"$f":"'1'!AS15","v":""},null,{"$f":"IF(Inscrits!B7=0,\"\",Inscrits!B7)","v":"DUPRE RAMBAUD NATAEL"},{"$error":"#N/A"},{"$error":"#N/A"},{"$error":"#N/A"}]
[null,null,null,null,null,null,null,null,null,null,null,null,null,null,null,null,null,null,null,null,null,{"$f":"J12","v":""},null,null,{"$f":"IF(AND(L6=\"A\",L12=\"A\"),0,IF(L6=\"A\",L12,IF(L12=\"A\",-L6,L12-L6)))","v":0},{"$f":"IF(N9=V10,IF(AND(P9=\"A\",P21=\"A\"),0,IF(OR(Y10>0,L6=\"A\"),IF(P9=\"A\",-P21,IF(P21=\"A\",P9,P9-P21)),0)),0)","v":0},{"$f":"SUM(W10:Z10)","v":0},null,{"$f":"'1'!AR16","v":0},{"$f":"'1'!AS16","v":0},null,{"$f":"IF(Inscrits!#REF!=0,\"\",Inscrits!#REF!)","v":{"$error":"#REF!"}},{"$error":"#REF!"},{"$error":"#REF!"},{"$error":"#REF!"}]
[null,null,null,null,null,null,null,null,null,null,null,null,null,null,null,null,null,null,null,null,null,null,null,null,null,null,null,null,{"$f":"'1'!AR17","v":0},{"$f":"'1'!AS17","v":0},null,{"$f":"IF(Inscrits!#REF!=0,\"\",Inscrits!#REF!)","v":{"$error":"#REF!"}},{"$error":"#REF!"},{"$error":"#REF!"},{"$error":"#REF!"}]
[null,null,null,null,null,null,null,null,null,{"$f":"IF('1'!B8=0,\"\",'1'!B8)","v":""},{"$f":"IF('1'!C8=0,\"\",'1'!C8)","v":""}]
[null,null,null,null,null,null,null,null,null,null,null,null,null,null,null,null,null,null,null,null,null,{"$f":"J18","v":""},null,null,{"$f":"IF(AND(L18=\"A\",L24=\"A\"),0,IF(L18=\"A\",-L24,IF(L18=\"A\",L24,L18-L24)))","v":0},{"$f":"IF(N21=V13,IF(AND(P9=\"A\",P21=\"A\"),0,IF(OR(Y13>0,L24=\"A\"),IF(P21=\"A\",-P9,IF(P9=\"A\",P21,P21-P9)),0)),0)","v":0},{"$f":"SUM(W13:Z13)","v":0}]
[]
[null,null,null,null,null,null,null,null,null,null,null,null,null,"Match 3 - Billard",null,null,null,{"$f":"IF(AND(P9=\"A\",P21=\"A\"),N9,IF(P9=\"A\",N21,IF(P21=\"A\",N9,IF(P9=P21,\"\",(IF(P9>P21,N9,N21))))))","v":""},{"$f":"IF(AND(P9=\"F\",P21=\"F\"),O9,IF(P9=\"F\",O21,IF(P21=\"F\",O9,IF(P9=P21,\"\",(IF(P9>P21,O9,O21))))))","v":""}]
[]
[]
[null,null,null,null,null,null,null,null,null,{"$f":"IF('1'!U16=0,\"\",'1'!U16)","v":""},{"$f":"IF('1'!V16=0,\"\",'1'!V16)","v":""}]
[null,null,null,null,null,null,null,null,null,null,null,null,null,null,null,null,null,null,null,null,null,{"$f":"J24","v":""},null,null,{"$f":"IF(AND(L18=\"A\",L24=\"A\"),0,IF(L18=\"A\",L24,IF(L18=\"A\",-L24,L24-L18)))","v":0},{"$f":"IF(N21=V19,IF(AND(P9=\"A\",P21=\"A\"),0,IF(OR(Y19>0,L18=\"A\"),IF(P21=\"A\",-P9,IF(P9=\"A\",P21,P21-P9)),0)),0)","v":0},{"$f":"SUM(W19:Z19)","v":0}]
[null,null,null,null,null,null,null,null,null,null,null,null,null,null,null,null,null,null,null,null,null,{"$f":"'1'!AR14","v":""},null,null,null,null,0]
[null,null,null,null,null,null,null,null,null,"Match 2 - Billard",null,null,null,{"$f":"IF(AND(L18=\"A\",L24=\"A\"),J18,IF(L18=\"A\",J24,IF(L24=\"A\",J18,IF(L18=L24,\"\",(IF(L18>L24,J18,J24))))))","v":""},{"$f":"IF(AND(L18=\"A\",L24=\"A\"),K18,IF(L18=\"A\",K24,IF(L24=\"A\",K18,IF(L18=L24,\"\",(IF(L18>L24,K18,K24))))))","v":""},null,null,null,null,null,null,{"$f":"'1'!AR15","v":""},null,null,null,null,0]
[null,null,null,null,null,null,null,null,null,null,null,null,null,null,null,null,null,null,null,null,null,{"$f":"'1'!AR16","v":0},null,null,null,null,0]
[null,null,null,null,null,null,null,null,null,null,null,null,null,null,null,null,null,null,null,null,null,{"$f":"'1'!AR17","v":0},null,null,null,null,0]
[null,null,null,null,null,null,null,null,null,{"$f":"IF('1'!B18=0,\"\",'1'!B18)","v":""},{"$f":"IF('1'!C18=0,\"\",'1'!C18)","v":""}]

{"sheet":"Classement","index":5,"n_rows":7,"n_cols":11,"rows_kept":7,"cut":false,"hidden":false,"merged":[]}
[null,null,"Formules Initiales","Nom & Prénom","Place","Points","GA","Club","Ville","Licence","Division"]
[null,null,1,{"$f":"Final!R15","v":""},null,{"$f":"IF(ISNA(IF(LEFT(Division,2)=\"R1\",VLOOKUP(E2,Points!$A$2:$D$9,2,FALSE),IF(LEFT(Division,2)=\"R2\",VLOOKUP(E2,Points!$A$2:$D$9,3,FALSE),IF(LEFT(Division,2)=\"R3\",VLOOKUP(E2,Points!$A$2:$D$9,4,FALSE),\"DIV ???\")))),0,IF(LEFT(Division,2)=\"R1\",VLOOKUP(E2,Points!$A$2:$D$9,2,FALSE),IF(LEFT(Division,2)=\"R2\",VLOOKUP(E2,Points!$A$2:$D$9,3,FALSE),IF(LEFT(Division,2)=\"R3\",VLOOKUP(E2,Points!$A$2:$D$9,4,FALSE),\"DIV ???\"))))","v":0},{"$f":"IF(ISERROR(VLOOKUP(D2,Final!$AF$4:$AI$11,4,FALSE)),\"\",VLOOKUP(D2,Final!$AF$4:$AI$11,4,FALSE))","v":""},{"$f":"IF(ISNA(VLOOKUP(D2,Inscrits!B:E,3,FALSE)),\"\",VLOOKUP(D2,Inscrits!B:E,3,FALSE))","v":""},{"$f":"IF(ISNA(VLOOKUP(D2,Inscrits!B:E,4,FALSE)),\"\",VLOOKUP(D2,Inscrits!B:E,4,FALSE))","v":""},{"$f":"IF(ISNA(VLOOKUP(D2,Inscrits!B:E,5,FALSE)),\"\",VLOOKUP(D2,Inscrits!B:E,5,FALSE))","v":""},{"$f":"IF(NB_JOUEURS_UP>0,IF(LEN(Division)=2,\"R\"&RIGHT(Division,1)-1&\"\",IF(LEN(Division)=3,IF(RIGHT(LEFT(Division,2),1)=\"2\",\"R1\",IF(Nb_R2=1,\"R2\",\"R\"&RIGHT(LEFT(Division,2),1)-1&\"\"&RIGHT(Division,1)&\"\")),IF(LEN(Division)=4,IF(RIGHT(LEFT(Division,2),1)=\"2\",\"R1\",\"R\"&RIGHT(LEFT(Division,2),1)-1&\"\"&RIGHT(LEFT(Division,3),1)&\"\"),\"?\"))),Division)","v":"R1"}]
[null,null,2,{"$f":"IF(Final!P21=\"A\",Final!N21,IF(Final!P9=\"A\",Final!N9,IF(Final!P9<Final!P21,Final!N9,Final!N21)))","v":""},null,{"$f":"IF(ISNA(IF(LEFT(Division,2)=\"R1\",VLOOKUP(E3,Points!$A$2:$D$9,2,FALSE),IF(LEFT(Division,2)=\"R2\",VLOOKUP(E3,Points!$A$2:$D$9,3,FALSE),IF(LEFT(Division,2)=\"R3\",VLOOKUP(E3,Points!$A$2:$D$9,4,FALSE),\"DIV ???\")))),0,IF(LEFT(Division,2)=\"R1\",VLOOKUP(E3,Points!$A$2:$D$9,2,FALSE),IF(LEFT(Division,2)=\"R2\",VLOOKUP(E3,Points!$A$2:$D$9,3,FALSE),IF(LEFT(Division,2)=\"R3\",VLOOKUP(E3,Points!$A$2:$D$9,4,FALSE),\"DIV ???\"))))","v":0},{"$f":"IF(ISERROR(VLOOKUP(D3,Final!$AF$4:$AI$11,4,FALSE)),\"\",VLOOKUP(D3,Final!$AF$4:$AI$11,4,FALSE))","v":""},{"$f":"IF(ISNA(VLOOKUP(D3,Inscrits!B:E,3,FALSE)),\"\",VLOOKUP(D3,Inscrits!B:E,3,FALSE))","v":""},{"$f":"IF(ISNA(VLOOKUP(D3,Inscrits!B:E,4,FALSE)),\"\",VLOOKUP(D3,Inscrits!B:E,4,FALSE))","v":""},{"$f":"IF(ISNA(VLOOKUP(D3,Inscrits!B:E,5,FALSE)),\"\",VLOOKUP(D3,Inscrits!B:E,5,FALSE))","v":""},{"$f":"IF(NB_JOUEURS_UP>1,IF(LEN(Division)=2,\"R\"&RIGHT(Division,1)-1&\"\",IF(LEN(Division)=3,IF(RIGHT(LEFT(Division,2),1)=\"2\",\"R1\",IF(Nb_R2=1,\"R2\",\"R\"&RIGHT(LEFT(Division,2),1)-1&\"\"&RIGHT(Division,1)&\"\")),IF(LEN(Division)=4,IF(RIGHT(LEFT(Division,2),1)=\"2\",\"R1\",\"R\"&RIGHT(LEFT(Division,2),1)-1&\"\"&RIGHT(LEFT(Division,3),1)&\"\"),\"?\"))),Division)","v":"R1"}]
[null,null,3,{"$f":"IF(Final!L12=\"A\",Final!J12,IF(Final!L6=\"A\",Final!J6,IF(Final!L6<Final!L12,Final!J6,Final!J12)))","v":""},null,{"$f":"IF(ISNA(IF(LEFT(Division,2)=\"R1\",VLOOKUP(E4,Points!$A$2:$D$9,2,FALSE),IF(LEFT(Division,2)=\"R2\",VLOOKUP(E4,Points!$A$2:$D$9,3,FALSE),IF(LEFT(Division,2)=\"R3\",VLOOKUP(E4,Points!$A$2:$D$9,4,FALSE),\"DIV ???\")))),0,IF(LEFT(Division,2)=\"R1\",VLOOKUP(E4,Points!$A$2:$D$9,2,FALSE),IF(LEFT(Division,2)=\"R2\",VLOOKUP(E4,Points!$A$2:$D$9,3,FALSE),IF(LEFT(Division,2)=\"R3\",VLOOKUP(E4,Points!$A$2:$D$9,4,FALSE),\"DIV ???\"))))","v":0},{"$f":"IF(ISERROR(VLOOKUP(D4,Final!$AF$4:$AI$11,4,FALSE)),\"\",VLOOKUP(D4,Final!$AF$4:$AI$11,4,FALSE))","v":""},{"$f":"IF(ISNA(VLOOKUP(D4,Inscrits!B:E,3,FALSE)),\"\",VLOOKUP(D4,Inscrits!B:E,3,FALSE))","v":""},{"$f":"IF(ISNA(VLOOKUP(D4,Inscrits!B:E,4,FALSE)),\"\",VLOOKUP(D4,Inscrits!B:E,4,FALSE))","v":""},{"$f":"IF(ISNA(VLOOKUP(D4,Inscrits!B:E,5,FALSE)),\"\",VLOOKUP(D4,Inscrits!B:E,5,FALSE))","v":""},{"$f":"IF(NB_JOUEURS_UP>2,IF(LEN(Division)=2,\"R\"&RIGHT(Division,1)-1&\"\",IF(LEN(Division)=3,IF(RIGHT(LEFT(Division,2),1)=\"2\",\"R1\",IF(Nb_R2=1,\"R2\",\"R\"&RIGHT(LEFT(Division,2),1)-1&\"\"&RIGHT(Division,1)&\"\")),IF(LEN(Division)=4,IF(RIGHT(LEFT(Division,2),1)=\"2\",\"R1\",\"R\"&RIGHT(LEFT(Division,2),1)-1&\"\"&RIGHT(LEFT(Division,3),1)&\"\"),\"?\"))),Division)","v":"R1"}]
[null,null,4,{"$f":"IF(Final!L24=\"A\",Final!J24,IF(Final!L18=\"A\",Final!J18,IF(Final!L18<Final!L24,Final!J18,Final!J24)))","v":""},null,{"$f":"IF(ISNA(IF(LEFT(Division,2)=\"R1\",VLOOKUP(E5,Points!$A$2:$D$9,2,FALSE),IF(LEFT(Division,2)=\"R2\",VLOOKUP(E5,Points!$A$2:$D$9,3,FALSE),IF(LEFT(Division,2)=\"R3\",VLOOKUP(E5,Points!$A$2:$D$9,4,FALSE),\"DIV ???\")))),0,IF(LEFT(Division,2)=\"R1\",VLOOKUP(E5,Points!$A$2:$D$9,2,FALSE),IF(LEFT(Division,2)=\"R2\",VLOOKUP(E5,Points!$A$2:$D$9,3,FALSE),IF(LEFT(Division,2)=\"R3\",VLOOKUP(E5,Points!$A$2:$D$9,4,FALSE),\"DIV ???\"))))","v":0},{"$f":"IF(ISERROR(VLOOKUP(D5,Final!$AF$4:$AI$11,4,FALSE)),\"\",VLOOKUP(D5,Final!$AF$4:$AI$11,4,FALSE))","v":""},{"$f":"IF(ISNA(VLOOKUP(D5,Inscrits!B:E,3,FALSE)),\"\",VLOOKUP(D5,Inscrits!B:E,3,FALSE))","v":""},{"$f":"IF(ISNA(VLOOKUP(D5,Inscrits!B:E,4,FALSE)),\"\",VLOOKUP(D5,Inscrits!B:E,4,FALSE))","v":""},{"$f":"IF(ISNA(VLOOKUP(D5,Inscrits!B:E,5,FALSE)),\"\",VLOOKUP(D5,Inscrits!B:E,5,FALSE))","v":""},{"$f":"IF(NB_JOUEURS_UP>3,IF(LEN(Division)=2,\"R\"&RIGHT(Division,1)-1&\"\",IF(LEN(Division)=3,IF(RIGHT(LEFT(Division,2),1)=\"2\",\"R1\",IF(Nb_R2=1,\"R2\",\"R\"&RIGHT(LEFT(Division,2),1)-1&\"\"&RIGHT(Division,1)&\"\")),IF(LEN(Division)=4,IF(RIGHT(LEFT(Division,2),1)=\"2\",\"R1\",\"R\"&RIGHT(LEFT(Division,2),1)-1&\"\"&RIGHT(LEFT(Division,3),1)&\"\"),\"?\"))),Division)","v":"R1"}]
[null,null,5,{"$f":"'1'!AR14","v":""},null,{"$f":"IF(ISNA(IF(LEFT(Division,2)=\"R1\",VLOOKUP(E6,Points!$A$2:$D$9,2,FALSE),IF(LEFT(Division,2)=\"R2\",VLOOKUP(E6,Points!$A$2:$D$9,3,FALSE),IF(LEFT(Division,2)=\"R3\",VLOOKUP(E6,Points!$A$2:$D$9,4,FALSE),\"DIV ???\")))),0,IF(LEFT(Division,2)=\"R1\",VLOOKUP(E6,Points!$A$2:$D$9,2,FALSE),IF(LEFT(Division,2)=\"R2\",VLOOKUP(E6,Points!$A$2:$D$9,3,FALSE),IF(LEFT(Division,2)=\"R3\",VLOOKUP(E6,Points!$A$2:$D$9,4,FALSE),\"DIV ???\"))))","v":0},{"$f":"IF(ISERROR(VLOOKUP(D6,Final!$AF$4:$AI$11,4,FALSE)),\"\",VLOOKUP(D6,Final!$AF$4:$AI$11,4,FALSE))","v":""},{"$f":"IF(ISNA(VLOOKUP(D6,Inscrits!B:E,3,FALSE)),\"\",VLOOKUP(D6,Inscrits!B:E,3,FALSE))","v":""},{"$f":"IF(ISNA(VLOOKUP(D6,Inscrits!B:E,4,FALSE)),\"\",VLOOKUP(D6,Inscrits!B:E,4,FALSE))","v":""},{"$f":"IF(ISNA(VLOOKUP(D6,Inscrits!B:E,5,FALSE)),\"\",VLOOKUP(D6,Inscrits!B:E,5,FALSE))","v":""},{"$f":"IF(NB_JOUEURS_UP>4,IF(LEN(Division)=2,\"R\"&RIGHT(Division,1)-1&\"\",IF(LEN(Division)=3,IF(RIGHT(LEFT(Division,2),1)=\"2\",\"R1\",IF(Nb_R2=1,\"R2\",\"R\"&RIGHT(LEFT(Division,2),1)-1&\"\"&RIGHT(Division,1)&\"\")),IF(LEN(Division)=4,IF(RIGHT(LEFT(Division,2),1)=\"2\",\"R1\",\"R\"&RIGHT(LEFT(Division,2),1)-1&\"\"&RIGHT(LEFT(Division,3),1)&\"\"),\"?\"))),Division)","v":"R1"}]
[null,null,6,{"$f":"'1'!AR15","v":""},null,{"$f":"IF(ISNA(IF(LEFT(Division,2)=\"R1\",VLOOKUP(E7,Points!$A$2:$D$9,2,FALSE),IF(LEFT(Division,2)=\"R2\",VLOOKUP(E7,Points!$A$2:$D$9,3,FALSE),IF(LEFT(Division,2)=\"R3\",VLOOKUP(E7,Points!$A$2:$D$9,4,FALSE),\"DIV ???\")))),0,IF(LEFT(Division,2)=\"R1\",VLOOKUP(E7,Points!$A$2:$D$9,2,FALSE),IF(LEFT(Division,2)=\"R2\",VLOOKUP(E7,Points!$A$2:$D$9,3,FALSE),IF(LEFT(Division,2)=\"R3\",VLOOKUP(E7,Points!$A$2:$D$9,4,FALSE),\"DIV ???\"))))","v":0},{"$f":"IF(ISERROR(VLOOKUP(D7,Final!$AF$4:$AI$11,4,FALSE)),\"\",VLOOKUP(D7,Final!$AF$4:$AI$11,4,FALSE))","v":""},{"$f":"IF(ISNA(VLOOKUP(D7,Inscrits!B:E,3,FALSE)),\"\",VLOOKUP(D7,Inscrits!B:E,3,FALSE))","v":""},{"$f":"IF(ISNA(VLOOKUP(D7,Inscrits!B:E,4,FALSE)),\"\",VLOOKUP(D7,Inscrits!B:E,4,FALSE))","v":""},{"$f":"IF(ISNA(VLOOKUP(D7,Inscrits!B:E,5,FALSE)),\"\",VLOOKUP(D7,Inscrits!B:E,5,FALSE))","v":""},{"$f":"IF(NB_JOUEURS_UP>5,IF(LEN(Division)=2,\"R\"&RIGHT(Division,1)-1&\"\",IF(LEN(Division)=3,IF(RIGHT(LEFT(Division,2),1)=\"2\",\"R1\",IF(Nb_R2=1,\"R2\",\"R\"&RIGHT(LEFT(Division,2),1)-1&\"\"&RIGHT(Division,1)&\"\")),IF(LEN(Division)=4,IF(RIGHT(LEFT(Division,2),1)=\"2\",\"R1\",\"R\"&RIGHT(LEFT(Division,2),1)-1&\"\"&RIGHT(LEFT(Division,3),1)&\"\"),\"?\"))),Division)","v":"R1"}]

{"sheet":"Feuil1","index":6,"n_rows":977,"n_cols":3,"rows_kept":977,"cut":false,"hidden":false,"merged":[]}
["Licence","Nom Prenom","Nom Club"]
["010669J","GUIHEUX DENIS","BILLARD CLUB GRENOBLOIS"]
["010957L","CONTAMINE ALAIN","BILLARD CLUB MONTLUCONNAIS"]
["010959N","DESPREZ SERGE","BILLARD CLUB MONTLUCONNAIS"]
["010960O","MIDROUILLET PATRICK","BILLARD CLUB MONTLUCONNAIS"]
["010978G","VIGILI GINO","B.S.CLERMONTOIS"]
["010984M","LEFEBVRE SERGE","BILLARD CLUB MOULINS"]
["010991T","PICANDET RENE","BILLARD CLUB ST ELOY"]
["011005H","ROESCH PHILIPPE","B.S.CLERMONTOIS"]
["011016S","SANCHEZ CHRISTIAN","BILLARD CLUB VICHY"]
["011026C","DIDIER JEAN PAUL","BILLARD CLUB MOULINS"]
["011036M","CAILLAT ANDRE","BILLARD CLUB MOULINS"]
["011049Z","MOINE ROBERT","B.S.CLERMONTOIS"]
["011051B","PACE MICHEL","B.S.CLERMONTOIS"]
["011061L","PONTRUCHER PIERRE RICHARD","B.S.CLERMONTOIS"]
["011067R","LACOMBE JEAN MARIE","BILLARD CLUB ST ELOY"]
["011105D","BOUDAILLIER PIERRE","B.S.CLERMONTOIS"]
["011120S","SIVADE GERARD","AMIC.SPOR.MONTMARAULTOISE BILLARD"]
["011128A","FERNANDEZ JOSE","B.S.CLERMONTOIS"]
["011908A","CAMBERLIN ERIC","ACADEMIE DE BILLARD DE CHASSIEU"]
["012828K","COHEN STEPHAN","BILLARD CLUB 109"]
["012951D","DEPOND DOMINIQUE","CERCLE DES CHEFS D ATELIER"]
["013137H","FONGARNAND DIDIER","B.S.CLERMONTOIS"]
["013178W","GALLAND GREGORY","ACADEMIE BILLARD OUEST LYONNAIS"]
["013745R","MILLET RAYMOND","BILLARD CLUB ROMANAIS PEAGEOIS"]
["013791L","MORNIE LAURENT","VALENCE BILLARD CLUB"]
["014638A","BLETON CLAUDE","CERCLE DES CHEFS D ATELIER"]
["014960K","MATHIEU YANNIC","VALENCE BILLARD CLUB"]
["015119N","PONCET FRANCIS","BILLARD CLUB PONTOIS"]
["015357R","SAVOLDELLI RENE","BILLARD CLUB SAINT ROMANAIS"]
["015524C","FLORIAN DENIS","CLUB DE BILLARD MONTBRISONNAIS"]
["015717N","ICARD ANDRE","ACADEMIE DE BILLARD DE CHASSIEU"]
["015727X","BROCHAND PATRICK","CERCLE DES CHEFS D ATELIER"]
["015728Y","CHALAND JEAN","CERCLE DES CHEFS D ATELIER"]
["015730A","DANANCIER DOMINIQUE","CERCLE DES CHEFS D ATELIER"]
["015731B","GRANJON CHRISTIAN","BILLARD CLUB PONTOIS"]
["015732C","LACROIX DANIEL","ACADEMIE BILLARD OUEST LYONNAIS"]
["015733D","LAVAUD JEAN MICHEL","ACADEMIE BILLARD OUEST LYONNAIS"]
["015735F","MEVEL HERVE","CERCLE DES CHEFS D ATELIER"]
["015737H","VARLOT HENRI","CERCLE DES CHEFS D ATELIER"]
["015743N","DORIER ALAIN","BILLARD CLUB ROMANAIS PEAGEOIS"]
["015748S","CABANES PHILIPPE","BILLARD CLUB PONTOIS"]
["015758C","DALLOYEAU CHRISTIAN","BILLARD STELLA THONON"]
["015760E","GALLO MICHEL","BILLARD CLUB GRENOBLOIS"]
["015761F","LAURETTA JOSEPH","BILLARD CLUB GRENOBLOIS"]
["015771P","DECROUX BERNARD","VALENCE BILLARD CLUB"]
["015777V","ARMAND BRUNO","VALENCE BILLARD CLUB"]
["015778W","GREMAUD LAURENT","VALENCE BILLARD CLUB"]
["015779X","MOLIERE JEAN PAUL","VALENCE BILLARD CLUB"]
["015787F","BOISSOU ROBERT","CLUB CHAMBERIEN DE BILLARD"]
["015796O","BONNEFOI RICHARD","CLUB OMNISPORTS DE SAINT FONS"]
["015805X","DELANGE GUY","BILLARD CLUB DE VILLEFRANCHE"]
["015813F","CHAPEAUX EMILE","BILLARD CLUB DE VILLEFRANCHE"]
["015815H","HELIN ALAIN","BILLARD CLUB DE VILLEFRANCHE"]
["015816I","MEUNIER MARC","BILLARD CLUB DE VILLEFRANCHE"]
["015824Q","VIDON GERARD","GROUPE SPORTIF LUGDUNUM"]
["015826S","BATAILLE RAYMOND","BILLARD CLUB PONTOIS"]
["015832Y","SAILLANT PHILIPPE","CERCLE DES CHEFS D ATELIER"]
["015837D","DUBUISSON PHILIPPE","BILLARD CLUB DE VILLEFRANCHE"]
["015843J","BOTTON JACKY","BILLARD CLUB PONTOIS"]
["015851R","MUZEAU PATRICK","BILLARD CLUB ROMANAIS PEAGEOIS"]
["015854U","TATIER ERIC","VALENCE BILLARD CLUB"]
["015869J","BAIZET CHRISTIAN","BILLARD CLUB ROMANAIS PEAGEOIS"]
["015873N","ABOUAF DANIEL","ACADEMIE BILLARD OUEST LYONNAIS"]
["015878S","JARDIN GERARD","BILLARD CLUB AIXOIS"]
["015879T","RIONDEL RENE","BILLARD CLUB GRENOBLOIS"]
["015881V","AURAND LOUIS","BILLARD CLUB PONTOIS"]
["015888C","COEURET JACQUES","A.B. DE BOURGOIN-JALLIEU"]
["015895J","PLUVINAGE JEAN CLAUDE","BILLARD STELLA THONON"]
["015900O","BERRUYER ROGER","BILLARD CLUB ROMANAIS PEAGEOIS"]
["015903R","COLLET BERNARD","CERCLE DES CHEFS D ATELIER"]
["015912A","GASS MICHEL","CERCLE DES CHEFS D ATELIER"]
["015919H","VERNET DANIEL","VALENCE BILLARD CLUB"]
["015924M","SANTI SERGE","BILLARD STELLA THONON"]
["015926O","HEBERT ALAIN","BILLARD CLUB ROMANAIS PEAGEOIS"]
["015934W","GASS JEAN LOUIS","CERCLE DES CHEFS D ATELIER"]
["015936Y","PERES CLAUDE","BILLARD CLUB DE SAINT-GALMIER"]
["015939B","DESRAYAUD CHRISTOPHE","GROUPE SPORTIF LUGDUNUM"]
["015944G","PRUVOST JEAN LOUIS","CLUB OMNISPORTS DE SAINT FONS"]
["015956S","PALOMBO ENZO","ACADEMIE DE BILLARD DE CHASSIEU"]
["015957T","LAURENT JEAN LUC","ACADEMIE DE BILLARD DE CHASSIEU"]
["015959V","BERTHELIER PATRICK","LE TAPIS VERT ROANNAIS"]
["015966C","SOLA ALBERT","LE TAPIS VERT ROANNAIS"]
["015983T","CARNAT ROBERT","LE TAPIS VERT ROANNAIS"]
["015992C","DUPLOMB GUY","VALENCE BILLARD CLUB"]
["016015Z","AUDONNET JEREMY","AMICALE LAIQUE RICAMARIE"]
["016020E","FAIDIT SERGE","CLUB DE BILLARD MONTBRISONNAIS"]
["016044C","DIAZ JEAN LOUIS","AMICALE LAIQUE RICAMARIE"]
["016050I","LORON LOUIS","ACAD. DE BILLARD DE SAINT-ETIENNE"]
["016053L","VALLAT DANIEL","ACAD. DE BILLARD DE SAINT-ETIENNE"]
["016054M","CHAUSSAT JEAN MARC","ACAD. DE BILLARD DE SAINT-ETIENNE"]
["016056O","BOURGEOIS GERARD","BILLARD STELLA THONON"]
["016058Q","SOURBE HENRI","BILLARD STELLA THONON"]
["016064W","FAVIER MICHEL","LA CARAMBOLE LISSILOISE"]
["016070C","FLEURY MICHEL","CLUB OMNISPORTS DE SAINT FONS"]
["016073F","BERTHOLON GERARD","ACAD. DE BILLARD DE SAINT-ETIENNE"]
["016075H","PETIT RENE","ACAD. DE BILLARD DE SAINT-ETIENNE"]
["016085R","BAUP PASCAL","ACADEMIE ANNECIENNE DE BILLARD"]
["016108O","FERRE JEAN PAUL","BILLARD CLUB SAINT ROMANAIS"]
["016109P","MONTEL MAURICE","BILLARD CLUB SAINT ROMANAIS"]
["016111R","BORY PHILIPPE","CLUB DE BILLARD MONTBRISONNAIS"]
["016132M","DESSERT STEPHANE","ACAD. DE BILLARD DE SAINT-ETIENNE"]
["016143X","AUGAGNEUR JEAN PAUL","ASS. SPORTIVE MUNICIPALE ST ETIENNE"]
["016150E","VINCENT RENE","LA CARAMBOLE LISSILOISE"]
["016153H","VERSCHOORIS BRUNO","BILLARD CLUB AIXOIS"]
["016154I","CORNET ROGER","ACADEMIE BILLARD OUEST LYONNAIS"]
["016157L","MASSON JOEL","BILLARD CLUB SAINT ROMANAIS"]
["016161P","JULLIAT VINCENT","AMICALE BILLARD CLUB DE DAVEZIEUX"]
["016165T","CUNY ALAIN","AMICALE BILLARD CLUB DE DAVEZIEUX"]
["016166U","FAURE COMTE HENRI","AMICALE BILLARD CLUB DE DAVEZIEUX"]
["016168W","MOUNIER ARMAND","CLUB DE BILLARD MONTBRISONNAIS"]
["016181J","ECHASSOUX PAUL","CERCLE DES CHEFS D ATELIER"]
["016183L","MARCON ETIENNE","CERCLE DES CHEFS D ATELIER"]
["016189R","DRIOT JACKY","CLUB DE BILLARD MONTBRISONNAIS"]
["016194W","DAVID PATRICK","CLUB DE BILLARD MONTBRISONNAIS"]
["016202E","ROBERTON PIERRE","GROUPE SPORTIF LUGDUNUM"]
["016204G","LABEYE JEAN PIERRE","ACADEMIE BILLARD OUEST LYONNAIS"]
["016205H","MAGNIN JEAN PIERRE","BILLARD CLUB PONTOIS"]
["016219V","BLONDOT YVES","ACADEMIE ANNECIENNE DE BILLARD"]
["016247X","CHADELAUD JEAN MICHEL","BILLARD CLUB ALBERTVILLE"]
["016255F","PRIVAT PAUL","ACADEMIE DE BILLARD D AUBENAS"]
["016301Z","SABOT MICHAEL","CLUB DE BILLARD MONTBRISONNAIS"]
["016315N","MARMIESSE JEAN","CERCLE DES CHEFS D ATELIER"]
["016318Q","GOUTALOY SYLVAIN","CERCLE DES CHEFS D ATELIER"]
["016337J","BORNET PHILIPPE","CERCLE DES CHEFS D ATELIER"]
["016352Y","MIKDAD ALI MOHAMMED","CERCLE DES CHEFS D ATELIER"]
["016355B","TUZZOLINO CLAUDE","CERCLE DES CHEFS D ATELIER"]
["016393N","PREBET DANIELLE","BILLARD CLUB AMICALE CHAPELON"]
["016410E","GUENET LAURENT","ACADEMIE BILLARD OUEST LYONNAIS"]
["016411F","BRAYER DENIS","CERCLE DES CHEFS D ATELIER"]
["016416K","BAILLY CLAUDE","CLUB CHAMBERIEN DE BILLARD"]
["016430Y","SABATIER ROLAND","ASS. SPORTIVE MUNICIPALE ST ETIENNE"]
["016433B","MINACORI JULIEN","CERCLE DES CHEFS D ATELIER"]
["016459B","PERROUX DENIS","LA CARAMBOLE LISSILOISE"]
["016475R","RIBES MAURICE","AMICALE BILLARD CLUB DE DAVEZIEUX"]
["016478U","CAMIN NORBERT","ACADEMIE DE BILLARD D AUBENAS"]
["016480W","TOME ERIC","BILLARD CLUB AMICALE CHAPELON"]
["016484A","MERLE MICHEL","BILLARD CLUB DE VILLEFRANCHE"]
["016486C","DEFOSSE MICHEL","LE TAPIS VERT ROANNAIS"]
["016488E","BERGER CHRISTIAN","BILLARD CLUB DE SAINT-GALMIER"]
["016498O","PREYNAT MAURICE","ACAD. DE BILLARD DE SAINT-ETIENNE"]
["017812C","TRAGIN LAURENT","BILLARD CLUB PONTOIS"]
["018158K","KNOSP THIERRY","CERCLE DES CHEFS D ATELIER"]
["020465D","ACHARD PATRICK","ACADEMIE DE BILLARD DE HAUTE LOIRE"]
["021913V","BOURHIS JEAN","BILLARD CLUB PONTOIS"]
["022383X","AUBERT ROUECHE ERIC","CLUB OMNISPORTS DE SAINT FONS"]
["022457T","VAUDAY PATRICK","BILLARD CLUB PONTOIS"]
["022985B","LEGRON GILLES","ACADEMIE ANNECIENNE DE BILLARD"]
["023128O","LASOTA CLAUDE","B.S.CLERMONTOIS"]
["100009N","BOBEE GREGORY","BILLARD CLUB DE SAINT-GALMIER"]
["100019X","VERNEDAL LIONEL","BILLARD CLUB DE SAINT-GALMIER"]
["100834G","CHAPATON DOMINIQUE","BILLARD CLUB 109"]
["100863J","VENDITTELLI FABIO","ACADEMIE BILLARD OUEST LYONNAIS"]
["100867N","BERNILLON MARCEL","CLUB OMNISPORTS DE SAINT FONS"]
["100869P","BERTHIER DOMINIQUE","CLUB OMNISPORTS DE SAINT FONS"]
["100870Q","GAUCHER JEAN FRANCOIS","CLUB OMNISPORTS DE SAINT FONS"]
["100873T","FERRIOL DOMINIQUE","BILLARD CLUB DE VILLEFRANCHE"]
["100883D","HONG LAMHONG PIERRE","SAINT CHAMOND BILLARD CLUB"]
["100893N","MERMET JACQUES","CLUB CHAMBERIEN DE BILLARD"]
["100896Q","ANDRE PASCAL","BILLARD CLUB DE LA PLAINE DU FOREZ"]
["100899T","TERRADE MARC","BILLARD CLUB DE LA PLAINE DU FOREZ"]
["100904Y","CHAMONAZ VANESSA","BILLARD CLUB PONTOIS"]
["100915J","BILLARD JEAN LOUIS","BILLARD CLUB AIXOIS"]
["100928W","DUBART JACQUES","LES SQUALES"]
["100932A","LOBOS MALDONANO OMAR","BILLARD CLUB PONTOIS"]
["100936E","POIX JEAN LUDOVIC","BILLARD CLUB PONTOIS"]
["100942K","ROUX JULIEN","BILLARD CLUB 109"]
["100953V","AVEDISSIAN HENRI","ACADEMIE DE BILLARD DE CHASSIEU"]
["100971N","ARNAUD PHILIPPE","CLUB DE BILLARD MONTBRISONNAIS"]
["100972O","BRUYAS ANTOINE","ASS. SPORTIVE MUNICIPALE ST ETIENNE"]
["100973P","BETTES JEAN LOUIS","BILLARD CLUB ROMANAIS PEAGEOIS"]
["101010A","PANTEL BERNARD","A.B. DE BOURGOIN-JALLIEU"]
["101011B","SIMON ROBERT","A.B. DE BOURGOIN-JALLIEU"]
["101027R","LESKOVSEK LAURENT","LE BLACKBALL MARSANNAIS"]
["101029T","MOLLE ALBAN","LES SQUALES"]
["101033X","PRAL LAURENT","VEYRE-MONTON BILLARD CLUB"]
["101038C","NEBOIT OLIVIER","LE BLACKBALL MARSANNAIS"]
["101044I","MATRAS JEAN MARIE","BILLARD CLUB ROMANAIS PEAGEOIS"]
["101045J","VIOSSAT DAVID","BILLARD CLUB ROMANAIS PEAGEOIS"]
["101047L","LATORRE ANDRE","LES SQUALES"]
["101056U","TSAN SAP NHI","BILLARD CLUB LYONNAIS 8 POOL"]
["101066E","DEPRUGNEY LIONEL","CERCLE BELLECOMBE DE LYON"]
["101069H","JANOIR ERIC","CERCLE BELLECOMBE DE LYON"]
["101070I","JOUVE SAMUEL","CERCLE BELLECOMBE DE LYON"]
["101079R","TASCA ANDRE","BILLARD CLUB 109"]
["101427B","LAHAYE CEDRIC","BILLARD CLUB PONTOIS"]
["101628U","RUSSO MANUEL","BILLARD CLUB DE BOURG EN BRESSE"]
["101757T","DURAND MICHEL","AMICALE BILLARD CLUB DE DAVEZIEUX"]
["102280W","PASTOR BRUNO","BILLARD CLUB DE GAILLARD"]
["102689P","JACOBY HENRIK","ASSOCIATION DU LAKE PUB 74"]
["103512G","REYNE PHILIPPE","ACADEMIE DE BILLARD DE CHASSIEU"]
["103610A","MERMOZ THIERRY","VEYRE-MONTON BILLARD CLUB"]
["103682U","MUSSET OLIVIER","BILLARD CLUB PONTOIS"]
["104537R","FERON PATRICK","CERCLE DES CHEFS D ATELIER"]
["104690O","LESPAGNOL ERIC","VULCAIN 8 POOL"]
["104708G","CHAMPEAU CLAUDE","BILLARD CLUB PONTOIS"]
["104740M","MERMOZ TONY","VEYRE-MONTON BILLARD CLUB"]
["104768O","CENDRIER DAVID","ASSOCIATION DU LAKE PUB 74"]
["104920K","FOURRE NICOLAS","VEYRE-MONTON BILLARD CLUB"]
["105671H","DAMIER NICOLAS","BILLARD CLUB ROMANAIS PEAGEOIS"]
["105704O","DURET CHRISTOPHE","CLUB CHAMBERIEN DE BILLARD"]
["105785R","GUILBAUD JEAN CLAUDE","BLACKBALL BILLARD CLUB BESAYES 26"]
["106254S","POCINHO MARIO","BILLARD CLUB 109"]
["106475F","PAQUIER CHARLES","BILLARD CLUB GRENOBLOIS"]
["107037V","TURCAN FREDERIC","BILLARD CLUB ROMANAIS PEAGEOIS"]
["107243T","BOUCHER JEAN CLAUDE","BILLARD CLUB DE GAILLARD"]
["107336I","DECOMBE JEAN PIERRE","BILLARD CLUB DE VILLEFRANCHE"]
["107357D","ROCHE GUY","AMICALE BILLARD CLUB DE DAVEZIEUX"]
["107365L","PAPILLON FREDERIC","VALENCE BILLARD CLUB"]
["107387H","CHABRAY DANIEL","BILLARD CLUB ROMANAIS PEAGEOIS"]
["107411F","MASCLET ERIC","CERCLE BELLECOMBE DE LYON"]
["107510A","LECROIX FRANCIS","B.S.CLERMONTOIS"]
["107514E","REIS COELHO FERNANDO","B.S.CLERMONTOIS"]
["107633T","GOURDIN MICHEL","CLUB OMNISPORTS DE SAINT FONS"]
["107696E","CORREIA MARC","ACADEMIE ANNECIENNE DE BILLARD"]
["107701J","CUCCO FREDERIC","CERCLE BELLECOMBE DE LYON"]
["107702K","RIMLINGER MARC","CERCLE BELLECOMBE DE LYON"]
["107706O","CLUZEL JACQUES","BILLARD CLUB GRENOBLOIS"]
["107707P","NICOLAS PIERRE","BILLARD CLUB GRENOBLOIS"]
["107766W","BESSON JEAN BAPTISTE","CERCLE DES CHEFS D ATELIER"]
["108521X","CASSIS MAXIME","BILLARD CLUB GRENOBLOIS"]
["108606E","VALLUIS NORBERT","CHARLEMAGNE SNOOKER CLUB"]
["108968C","DOMINGO XAVIER","BILLARD CLUB ROMANAIS PEAGEOIS"]
["109013V","MARKADAS TITUS","ACADEMIE ANNECIENNE DE BILLARD"]
["109048E","VERDIER JACQUES","CERCLE DES CHEFS D ATELIER"]
["110008C","SKNOEZECK YVAN","VULCAIN 8 POOL"]
["110372C","DEJONGHE JEAN MICHEL","BILLARD CLUB VICHY"]
["111359B","MARTELLONI GUY","ACADEMIE BILLARD OUEST LYONNAIS"]
["112460K","CADORE JEAN LUC","ACADEMIE BILLARD OUEST LYONNAIS"]
["112468S","PINET FRANCOIS","BILLARD CLUB ROMANAIS PEAGEOIS"]
["112484I","BROC AIME","ACADEMIE DE BILLARD DE CHASSIEU"]
["112490O","BLANCHARD CLAUDE","ACADEMIE ANNECIENNE DE BILLARD"]
["112505D","POUPON MICHEL","ACADEMIE ANNECIENNE DE BILLARD"]
["112520S","HONG LAMHONG ALEXANDRE","CLUB OMNISPORTS DE SAINT FONS"]
["112524W","DUVOISIN BAPTISTE","BILLARD CLUB 109"]
["112529B","VINAY MICHEL","BILLARD CLUB ROMANAIS PEAGEOIS"]
["112591L","MARION RENE","BILLARD CLUB MOULINS"]
["112600U","LIVEBARDON SONIA","ACAD. DE BILLARD DE SAINT-ETIENNE"]
["112619N","BENAISSA NAIM","BILLARD CLUB 109"]
["112866A","BREDA YVES","BILLARD CLUB AIXOIS"]
["113202Y","ABDOULZABAR CARIME","GROUPE SPORTIF LUGDUNUM"]
["113208E","DOMINICI ALBERT","BILLARD CLUB DE SAINT-GALMIER"]
["113580M","DAGNIAUX DANIEL","BILLARD STELLA THONON"]
["113890K","PENDZIALEK CHRISTIAN","BILLARD STELLA THONON"]
["114585D","MATHIAS GERARD","CERCLE DES CHEFS D ATELIER"]
["114665F","CHEUNG LANDRY","CERCLE BELLECOMBE DE LYON"]
["114964S","RUZ SEBASTIEN","CERCLE BELLECOMBE DE LYON"]
["116284M","FLANDRIN STEPHANE","CERCLE BELLECOMBE DE LYON"]
["116303F","PATTY ALAIN","ACADEMIE ANNECIENNE DE BILLARD"]
["116713Z","THONG A LOC","BILLARD CLUB LYONNAIS 8 POOL"]
["116718E","PALETTE FABRICE","BILLARD CLUB 109"]
["117134E","DEVERGNE JEAN","CLUB CHAMBERIEN DE BILLARD"]
["117149T","DELORME JOSEPH","BILLARD CLUB AMICALE CHAPELON"]
["117153X","BEAL JEAN PAUL","ACADEMIE DE BILLARD DE HAUTE LOIRE"]
["117673X","ODOUARD DANIEL","BILLARD CLUB ROMANAIS PEAGEOIS"]
["117797R","TAVERNA DANIEL","BILLARD CLUB GRENOBLOIS"]
["117801V","POULALIER PAUL","LE TAPIS VERT ROANNAIS"]
["119127V","OX KOSTA","ACADEMIE DE BILLARD D AUBENAS"]
["119290C","JACOBERGER FABIEN","BILLARD CLUB VICHY"]
["119305R","DUBOIS GABY","BILLARD CLUB MONTLUCONNAIS"]
["119307T","HAYEM PATRICK","BILLARD CLUB MOULINS"]
["119308U","MITEAU MICHEL","BILLARD CLUB MOULINS"]
["119728Y","LAZEREG RADIL","LES SQUALES"]
["119744O","PAPIN LAETITIA","LE BLACKBALL MARSANNAIS"]
["119746Q","FEUILLASTRE ALAIN","CLUB DE BILLARD MONTBRISONNAIS"]
["119749T","DELHAYE THOMAS","BILLARD CLUB DE LA PLAINE DU FOREZ"]
["119751V","SABY FREDERIC","BILLARD CLUB DE GAILLARD"]
["119753X","ROLHION DANIEL","ACADEMIE DE BILLARD DE HAUTE LOIRE"]
["119773R","VIOT MICHEL","BILLARD CLUB ROMANAIS PEAGEOIS"]
["120201D","JACQUEMOND OLIVIER","BILLARD CLUB DE SAINT-GALMIER"]
["120680O","MASSON ERIC","BILLARD CLUB PONTOIS"]
["121499B","MENS THOMAS","VEYRE-MONTON BILLARD CLUB"]
["121509L","RODDIER PATRICK","B.S.CLERMONTOIS"]
["121518U","FOURNIER CLAUDIUS","BILLARD CLUB MOULINS"]
["121543T","SCHREIBER ROBERT","LE TAPIS VERT ROANNAIS"]
["122086Q","DEROUALLIERE JEAN MARC","BILLARD CLUB PONTOIS"]
["122306C","DUPRE RAMBAUD FREDERIC","LES SQUALES"]
["122400S","CUBIZOLLES ALAIN","VEYRE-MONTON BILLARD CLUB"]
["122467H","VENNI FABRICE","BILLARD CLUB DE GAILLARD"]
["122474O","FORISSIER PIERRICK","BILLARD CLUB DE SAINT-GALMIER"]
["122481V","VERYSER CLAUDE","LA CARAMBOLE LISSILOISE"]
["122491F","DELORME ANDRE","ASS. SPORTIVE MUNICIPALE ST ETIENNE"]
["122508W","NOEL THIERRY","CLUB CHAMBERIEN DE BILLARD"]
["122563Z","CAO VAN TRUONG JULIEN","GROUPE SPORTIF LUGDUNUM"]
["122566C","MULLER SYLVAIN","CHARLEMAGNE SNOOKER CLUB"]
["122570G","CIVRAIS CHRISTIAN","LE TAPIS VERT ROANNAIS"]
["122770Y","COCHEZ FREDERIC","VEYRE-MONTON BILLARD CLUB"]
["122795X","SAMBEAT JEAN CLAUDE","CLUB CHAMBERIEN DE BILLARD"]
["122802E","RODRIGUEZ STEPHANIE","BILLARD CLUB 109"]
["123195H","MANDONNET MAXIME","ASSOCIATION DU LAKE PUB 74"]
["123367X","VIRGA JOEL","VEYRE-MONTON BILLARD CLUB"]
["123379J","DECHAMPS WILLIAM","VALENCE BILLARD CLUB"]
["123794I","MONNEYRAC KEVIN","BILLARD CLUB DE GAILLARD"]
["124121X","GIRAUD JACQUES","CERCLE DES CHEFS D ATELIER"]
["124159J","DERVILLERS VINCENT","LE BLACKBALL MARSANNAIS"]
["124310E","OUZEAU VINCENT","CLUB CHAMBERIEN DE BILLARD"]
["124461Z","LORTHIOIS JOHN","BILLARD CLUB ISSOIRE"]
["124571F","ROBERT DENIS","ACADEMIE DE BILLARD DE HAUTE LOIRE"]
["124575J","MAISONNEUVE LAURENT","BILLARD CLUB DE VILLEFRANCHE"]
["124587V","MONIER BERNARD","LE TAPIS VERT ROANNAIS"]
["125035B","BERRIN RENAUD","CERCLE DES CHEFS D ATELIER"]
["125596Q","SCHUPPERT JEAN LOUIS","A.B. DE BOURGOIN-JALLIEU"]
["125994Y","AUDOUARD JEAN CLAUDE","BILLARD CLUB DE SAINT-GALMIER"]
["126039R","BAILLY FABRICE","BILLARD CLUB LYONNAIS 8 POOL"]
["126041T","MORIN ANTHONY","BILLARD CLUB 109"]
["126050C","LHERMINIER THIERRY","BILLARD CLUB ALBERTVILLE"]
["126051D","WEILL GILBERT","BILLARD CLUB ALBERTVILLE"]
["126053F","FERNANDES PASCAL","A.B. DE BOURGOIN-JALLIEU"]
["126321N","TACHOIRE ADRIEN","ACADEMIE ANNECIENNE DE BILLARD"]
["126661P","GUILHOT OLIVIER","CLUB CHAMBERIEN DE BILLARD"]
["126989F","AZUELOS MAXIME","CLUB CHAMBERIEN DE BILLARD"]
["127269Z","PICKETT THOMAS","ASSOCIATION DU LAKE PUB 74"]
["127290U","BERGER MICHEL","VALENCE BILLARD CLUB"]
["127300E","KOCAURLU YAVUZ","ACADEMIE DE BILLARD DE CHASSIEU"]
["127310O","BRACEIRO JOSE","LES SQUALES"]
["127378E","ROPARS PATRICK","A.B. DE BOURGOIN-JALLIEU"]
["127551V","SAVONET VALERIE","LES SQUALES"]
["127765B","DELOUCHE ANTOINE","VEYRE-MONTON BILLARD CLUB"]
["128682I","ROSETTE THIBAUT","BILLARD CLUB LYONNAIS 8 POOL"]
["128967H","LEFRANCOIS KEVIN","VULCAIN 8 POOL"]
["128996K","CHIEZE MIREILLE","NIGHT BILLARD CLUB"]
["128998M","SOPIC NICOLAS","NIGHT BILLARD CLUB"]
["128999N","TEBBANI AZIZ","NIGHT BILLARD CLUB"]
["129017F","MEUNIER PHILIPPE","BILLARD CLUB VICHY"]
["129018G","FORCE STEPHANE","B.S.CLERMONTOIS"]
["129026O","BERTOTTO CHRISTIAN","BILLARD CLUB ISSOIRE"]
["129062Y","RENNESSON RICHARD","BILLARD CLUB ROMANAIS PEAGEOIS"]
["129146E","EL HAMDAY ANISS","BILLARD CLUB LYONNAIS 8 POOL"]
["129872C","MOULARD ANDRE","BILLARD CLUB DE LA PLAINE DU FOREZ"]
["129878I","DUQUENNE RICHARD","LA CARAMBOLE LISSILOISE"]
["129879J","COUTAREL YVES","ACADEMIE BILLARD OUEST LYONNAIS"]
["129881L","ELION MAURICE","ACADEMIE ANNECIENNE DE BILLARD"]
["129888S","RAYMOND SERGE","ACADEMIE DE BILLARD DE HAUTE LOIRE"]
["129892W","FERNANDEZ ALPHONSE","BILLARD CLUB GRENOBLOIS"]
["129896A","FERREOL EMILE","BILLARD CLUB DE SAINT-GALMIER"]
["129899D","VERDY MICHEL","B.S.CLERMONTOIS"]
["130046U","BELBECIR MOURAD","BILLARD CLUB 109"]
["130055D","TOBAILEM THIERRY","BILLARD CLUB DE SAINT-GALMIER"]
["130058G","POZZANI CEDRIC","BILLARD CLUB AIXOIS"]
["130059H","DUGAS GERARD","BILLARD CLUB AIXOIS"]
["130074W","MEJEAN JACQUES","ACAD. DE BILLARD DE SAINT-ETIENNE"]
["130075X","RASCLE PIERRE","ACAD. DE BILLARD DE SAINT-ETIENNE"]
["130083F","SCHAFFRAN CLAUDE","CERCLE DES CHEFS D ATELIER"]
["130103Z","RAYMOND DENIS","BILLARD CLUB DE GAILLARD"]
["130105B","DUDIT FABIEN","BILLARD CLUB DE BOURG EN BRESSE"]
["130621X","MAINGUET FELIX","BILLARD CLUB DE CLARAFOND ARCINE"]
["131278E","POTIQUET SEBASTIEN","BILLARD CLUB DE BOURG EN BRESSE"]
["131284K","CURT ALAIN","BILLARD CLUB ALBERTVILLE"]
["131290Q","CHERPIN GUY","LE TAPIS VERT ROANNAIS"]
["131320U","COSNIER ROMAIN","VULCAIN 8 POOL"]
["131653P","FROMENT ALAIN","AMIC.SPOR.MONTMARAULTOISE BILLARD"]
["131818Y","VASSEUR ALEXANDRE","BLACKBALL CULOZIEN"]
["131897Z","DJIARE NINA","BILLARD CLUB LYONNAIS 8 POOL"]
["131904G","CUBIZOLLES EVA","VEYRE-MONTON BILLARD CLUB"]
["132526E","ROQUES ALAIN","ACADEMIE BILLARD OUEST LYONNAIS"]
["132648W","LEVAST VANESSA","VULCAIN 8 POOL"]
["132887B","DEVANNE FREDERIC","BILLARD CLUB GRENOBLOIS"]
["132935X","DECHAMPS JULIE","VALENCE BILLARD CLUB"]
["132936Y","BOUVIER CHRISTIAN","VALENCE BILLARD CLUB"]
["132949L","PORTUGUES RICHARD","ACADEMIE DE BILLARD DE CHASSIEU"]
["132952O","DELLA BOSCA PAOLO","BILLARD CLUB 109"]
["132958U","RENAUT DIDIER","CLUB OMNISPORTS DE SAINT FONS"]
["132960W","BARRAUD PIERRE","BILLARD CLUB DE VILLEFRANCHE"]
["132971H","BAYET BENOIT","CLUB DE BILLARD MONTBRISONNAIS"]
["132972I","GENEVRIER GERARD","BILLARD CLUB SAINT ROMANAIS"]
["133106M","COUSTENOBLE CHRISTOPHE","BILLARD STELLA THONON"]
["133199B","MESNIER JEAN CLAUDE","ACADEMIE DE BILLARD DE LA VALSERINE"]
["133591D","VIDAL DANIEL","ACADEMIE DE BILLARD DE CHASSIEU"]
["133632S","BLUET JEAN MARIE","ACADEMIE DE BILLARD DE CHASSIEU"]
["133657R","VRAUX JACQUES","BILLARD CLUB ROMANAIS PEAGEOIS"]
["133771B","BOSIA JULIEN","BILLARD CLUB DE GAILLARD"]
["134035F","GIRON STEPHANIE","B.S.CLERMONTOIS"]
["134037H","GILLON JEAN CLAUDE","BILLARD CLUB MOULINS"]
["134038I","VINCENT CHRISTIAN","BILLARD CLUB MOULINS"]
["134285V","LONGEREY CHRISTELLE","ACADEMIE ANNECIENNE DE BILLARD"]
["134297H","CAS MICHEL","BILLARD CLUB GRENOBLOIS"]
["135452S","KONIECZNY FABRICE","CERCLE DES CHEFS D ATELIER"]
["135458Y","DESMIDT FRANCOIS","CERCLE DES CHEFS D ATELIER"]
["135589Z","LASSERON CYRIL","VULCAIN 8 POOL"]
["135804G","REPLUMAZ FREDERIC","BILLARD CLUB ROMANAIS PEAGEOIS"]
["135834K","BERARD HERVE","BILLARD CLUB 109"]
["135919R","MANDY NATHALIE","BILLARD CLUB DE BOURG EN BRESSE"]
["135920S","BRENDEL CHRISTIAN","BILLARD CLUB DE BOURG EN BRESSE"]
["135922U","LETOURNEUR SEBASTIEN","BILLARD CLUB DE BOURG EN BRESSE"]
["135925X","BRISSE THIERRY","ACADEMIE DE BILLARD DE HAUTE LOIRE"]
["135928A","MORLIN GUY","CLUB DE BILLARD MONTBRISONNAIS"]
["136030Y","BEZIER RENAUD","ACADEMIE BILLARD OUEST LYONNAIS"]
["136034C","FUENTES RICARDO","ACADEMIE DE BILLARD DE LA VALSERINE"]
["136039H","SUCHAUT ANTOINE","CLUB DE BILLARD MONTBRISONNAIS"]
["136090G","RIVATON PHILIPPE","BILLARD CLUB DE SAINT-GALMIER"]
["136095L","JOFFRE MARC","AMICALE BILLARD CLUB DE DAVEZIEUX"]
["136167F","CAUBERGS JEAN CLAUDE","ACADEMIE DE BILLARD D AUBENAS"]
["136202O","BLANCHIN GERARD","LE TAPIS VERT ROANNAIS"]
["136251L","VADILLO CORENTIN","BLACKBALL BILLARD CLUB BESAYES 26"]
["136272G","LE BRIS STEPHAN","BILLARD STELLA THONON"]
["136673R","SNOUSSI EZZEDINE","ACADEMIE DE BILLARD D AUBENAS"]
["137050E","HILAIRE JIMMY","ACADEMIE BILLARD OUEST LYONNAIS"]
["137228A","TROQUET BERNARD","CLUB CHAMBERIEN DE BILLARD"]
["137273T","NEIMER JOELLE","BILLARD CLUB DE GAILLARD"]
["137422M","VIGUIER FRANCK","BILLARD CLUB VICHY"]
["137433X","CONSTANTIN JACQUES","BILLARD STELLA THONON"]
["137566A","CHAUVET IVAN","BILLARD CLUB ISSOIRE"]
["137569D","VADILLO LAURENT","BLACKBALL BILLARD CLUB BESAYES 26"]
["137571F","HERREMAN FRANCOIS","LES SQUALES"]
["137576K","MOUGIN NICOLAS","BILLARD CLUB 109"]
["137586U","MARECHAL JACQUES","CLUB DE BILLARD MONTBRISONNAIS"]
["137588W","LECONNETABLE CLAUDE","CLUB DE BILLARD MONTBRISONNAIS"]
["137589X","LELOUP ALAIN","CLUB DE BILLARD MONTBRISONNAIS"]
["137591Z","BAYET BRUNO","CLUB DE BILLARD MONTBRISONNAIS"]
["137597F","BACCAM BOUNLIENG","NIGHT BILLARD CLUB"]
["137610S","BERENGUER MANUEL","ACADEMIE DE BILLARD DE CHASSIEU"]
["137611T","MAESTRI ROBERT","ACADEMIE ANNECIENNE DE BILLARD"]
["137613V","DARAKDJIAN CLAUDE","VALENCE BILLARD CLUB"]
["137708M","IMBERT JEAN PAUL","LA CARAMBOLE LISSILOISE"]
["137714S","GROS MARC","ACADEMIE BILLARD OUEST LYONNAIS"]
["137718W","FORISSIER LOUIS","BILLARD CLUB DE SAINT-GALMIER"]
["137719X","FRAGNE MARCEL","BILLARD CLUB DE SAINT-GALMIER"]
["137839N","BIENNE CYRIL","CHARLEMAGNE SNOOKER CLUB"]
["138140C","CIOLEK ALEXANDRE","BLACKBALL BILLARD CLUB BESAYES 26"]
["138176M","PHILIBERT GEORGES","BILLARD CLUB DE SAINT-GALMIER"]
["138180Q","MONNERET MARC","BILLARD CLUB DE VILLEFRANCHE"]
["138185V","SUCHAUT THIERRY","SAINT CHAMOND BILLARD CLUB"]
["138188Y","BLANCHET PATRICK","BLACKBALL BILLARD CLUB BESAYES 26"]
["138326G","URAY JIMMY","NIGHT BILLARD CLUB"]
["138328I","GREGOIRE PHILIPPE","BILLARD CLUB ROMANAIS PEAGEOIS"]
["138977H","BARBIER YANN","BILLARD CLUB DE SAINT-GALMIER"]
["138986Q","OTHMANI SAIF EDDINE","BILLARD CLUB LYONNAIS 8 POOL"]
["139035N","MUNOZ ROMAIN","CLUB CHAMBERIEN DE BILLARD"]
["139036O","VERPILLIER ROBERT","CLUB CHAMBERIEN DE BILLARD"]
["139158G","DORTET ALAIN","BILLARD CLUB VICHY"]
["139212I","SCHMIT ALEXANDRE","CERCLE DES CHEFS D ATELIER"]
["139455R","JARRET ANDRE","ACADEMIE DE BILLARD DE CHASSIEU"]
["139524I","CHEMIN PIERRE","CLUB CHAMBERIEN DE BILLARD"]
["139528M","DUPONT GERARD","ACADEMIE BILLARD OUEST LYONNAIS"]
["139579L","PERSON JEAN PIERRE","CERCLE DES CHEFS D ATELIER"]
["140563H","DELATTRE SERGE","A.B. DE BOURGOIN-JALLIEU"]
["140565J","RANCHON BERNARD","ASS. SPORTIVE MUNICIPALE ST ETIENNE"]
["140694I","ROBEZ FLORENT","NIGHT BILLARD CLUB"]
["140706U","BARBERA ANTHONY","ACADEMIE DE BILLARD D AUBENAS"]
["140811V","BARRALON FREDERIC","BILLARD CLUB DE SAINT-GALMIER"]
["140814Y","CORVAISIER DOMINIQUE","SAINT CHAMOND BILLARD CLUB"]
["140818C","POGGI GERARD","BILLARD CLUB ROMANAIS PEAGEOIS"]
["140821F","GALLON JEAN CLAUDE","ACAD. DE BILLARD DE SAINT-ETIENNE"]
["141021X","CREMY JULIEN","NIGHT BILLARD CLUB"]
["141194O","BRUNET SABRILLA","BILLARD CLUB PONTOIS"]
["141348M","PODESZWA GHISLAIN","ACADEMIE BILLARD OUEST LYONNAIS"]
["141464Y","DE DOMENICO ROBERTO","BILLARD STELLA THONON"]
["141470E","VILLENEUVE PATRICK","BILLARD STELLA THONON"]
["141631J","JULLIAT GUILLAUME","AMICALE BILLARD CLUB DE DAVEZIEUX"]
["141633L","CERVERA IRIS","BILLARD CLUB GRENOBLOIS"]
["141635N","BRUGIERE JEAN LOUIS","CERCLE DES CHEFS D ATELIER"]
["141637P","LAURIER GILLES","ACADEMIE BILLARD OUEST LYONNAIS"]
["142184Q","KLEIN JEAN LUC","CLUB DE BILLARD MONTBRISONNAIS"]
["142217X","VOVELLE LOUIS","CERCLE DES CHEFS D ATELIER"]
["142693F","BERNARD ALAIN","CLUB DE BILLARD MONTBRISONNAIS"]
["142694G","HOGG JEAN CLAUDE","CLUB DE BILLARD MONTBRISONNAIS"]
["142698K","LEVY ALAIN","BILLARD CLUB DE GAILLARD"]
["142699L","ROUSSEL CHRISTOPHE","BILLARD CLUB DE VILLEFRANCHE"]
["142700M","KERLEAUX JEAN CLAUDE","BILLARD CLUB DE VILLEFRANCHE"]
["142707T","SOEHNLEN BRUNO","ACADEMIE ANNECIENNE DE BILLARD"]
["142709V","FLUTTAZ JEAN LOUIS","BILLARD CLUB AIXOIS"]
["142710W","MARLIER CHARLES","ACADEMIE DE BILLARD DE CHASSIEU"]
["142807P","TALEB AMINE","VEYRE-MONTON BILLARD CLUB"]
["143028C","SARIAN PIERRE","ACADEMIE DE BILLARD D AUBENAS"]
["143193L","CHAPON JEAN MARIE","ACADEMIE DE BILLARD DE LA VALSERINE"]
["143251R","VACOSSIN NICOLAS","VEYRE-MONTON BILLARD CLUB"]
["143275P","DA ENCARNACAO JOSE","CERCLE BELLECOMBE DE LYON"]
["143279T","CLEMENT GERARD","CERCLE DES CHEFS D ATELIER"]
["143434S","DUHEM SYLVAIN","BILLARD CLUB ROMANAIS PEAGEOIS"]
["143441Z","BANCILHON JEAN","BILLARD CLUB ROMANAIS PEAGEOIS"]
["143525F","SCILY GERARD","LE TAPIS VERT ROANNAIS"]
["143526G","OLLIVIER FRANCK","LE TAPIS VERT ROANNAIS"]
["143533N","GONZALEZ BORIS","ACADEMIE BILLARD OUEST LYONNAIS"]
["143750W","CELETTE MICHEL","BILLARD CLUB GRENOBLOIS"]
["143892I","GROSJEAN THIERRY","CLUB CHAMBERIEN DE BILLARD"]
["143894K","MONTMAYEUR FRANCOIS","CHARLEMAGNE SNOOKER CLUB"]
["144035V","DEVEDEUX MARC","ACADEMIE BILLARD OUEST LYONNAIS"]
["144173D","BEE JEAN LUC","B.S.CLERMONTOIS"]
["144305F","CROS DAVID","LES SQUALES"]
["144306G","CURTIL SEBASTIEN","BILLARD CLUB 8 POOL EVIAN"]
["144307H","PEREJON FAUSTINO","BILLARD CLUB 8 POOL EVIAN"]
["144450U","MARIN GUY","BILLARD CLUB DE GAILLARD"]
["144703N","CAZANAVE PAUL","BLACKBALL BILLARD CLUB BESAYES 26"]
["144945V","MOUTMIR HAMZA","VEYRE-MONTON BILLARD CLUB"]
["145114I","FRANCE FERNAND","BILLARD CLUB DE SAINT-GALMIER"]
["145118M","ROLET LILIAN","BILLARD CLUB LYONNAIS 8 POOL"]
["145122Q","LEPETIT FRANCOIS","SAINT CHAMOND BILLARD CLUB"]
["145123R","KURADJIAN ALAIN","SAINT CHAMOND BILLARD CLUB"]
["145124S","GUILLAUMOND ALAIN","SAINT CHAMOND BILLARD CLUB"]
["145217H","DUMONT ALEXIS","LES SQUALES"]
["145227R","HANNOU RACHID","BILLARD CLUB DE GAILLARD"]
["145348I","PILLOT VINCENT","BILLARD CLUB PONTOIS"]
["145351L","COSNARD SEBASTIEN","BILLARD CLUB DE GAILLARD"]
["145358S","RICCOBENE MAXIME","BILLARD CLUB DE LA PLAINE DU FOREZ"]
["145370E","GRIOT GILBERT","CLUB DE BILLARD MONTBRISONNAIS"]
["145371F","GARNIER NICOLAS","BILLARD CLUB DE BOURG EN BRESSE"]
["145373H","DEBENOIT FRANCK","CLUB OMNISPORTS DE SAINT FONS"]
["145374I","POCHON JACQUES","BILLARD CLUB ROMANAIS PEAGEOIS"]
["145377L","BOYER BERNARD","BILLARD CLUB ROMANAIS PEAGEOIS"]
["145514S","FRAPPA DIDIER","AMICALE BILLARD CLUB DE DAVEZIEUX"]
["145516U","VALENTIN JEAN MARC","ACAD. DE BILLARD DE SAINT-ETIENNE"]
["145614O","KURTZ RENE","BILLARD CLUB AIXOIS"]
["145618S","REYMOND PIERRE","CLUB CHAMBERIEN DE BILLARD"]
["145627B","COUCHAUD GERARD","CLUB DE BILLARD MONTBRISONNAIS"]
["145631F","PERRET RICHARD","CLUB DE BILLARD MONTBRISONNAIS"]
["145636K","PERRET OLIVIER","CLUB DE BILLARD MONTBRISONNAIS"]
["145661J","LEPAGE PATRICK","VEYRE-MONTON BILLARD CLUB"]
["145972I","REY STEPHANE","AMICALE LAIQUE RICAMARIE"]
["146104K","BACCAM HELENE","NIGHT BILLARD CLUB"]
["146110Q","FANZONE JEAN CLAUDE","BILLARD CLUB GRENOBLOIS"]
["146111R","THINON JEROME","ACADEMIE DE BILLARD D AUBENAS"]
["146112S","BONDOUY FREDERIK","ACADEMIE DE BILLARD D AUBENAS"]
["146252C","POULY ANTOINE","CLUB CHAMBERIEN DE BILLARD"]
["146254E","JACOB BERNARD","CLUB CHAMBERIEN DE BILLARD"]
["146266Q","MADEIRA FERNANDO","ACADEMIE DE BILLARD DE LA VALSERINE"]
["146267R","COFFY JEROME","BILLARD CLUB PONTOIS"]
["146269T","GRIMM PATRICK","ACADEMIE DE BILLARD DE LA VALSERINE"]
["146311J","PHILIPPON FRANCOIS","CERCLE DES CHEFS D ATELIER"]
["146889P","DOMINGUES NICOLAS","BLACKBALL BILLARD CLUB BESAYES 26"]
["146947A","FAVENTIN JACQUES","BILLARD CLUB DE VILLEFRANCHE"]
["146949C","KOWACKI JEAN PIERRE","BILLARD CLUB DE VILLEFRANCHE"]
["146950D","MAISSE ROBERT","BILLARD CLUB DE VILLEFRANCHE"]
["146968Y","DUARTE JOSE","ACADEMIE DE BILLARD DE LA VALSERINE"]
["146970A","MARLET PATRICK","ACADEMIE DE BILLARD DE LA VALSERINE"]
["146971B","DONATO LAURENT","ACADEMIE DE BILLARD DE LA VALSERINE"]
["146972C","DE ALMEIDA DUARTE FREDERICO","BILLARD CLUB DE CLARAFOND ARCINE"]
["146999G","DENNI THIERRY","GROUPE SPORTIF LUGDUNUM"]
["147000H","GARCIA JUAN","GROUPE SPORTIF LUGDUNUM"]
["147001J","MEDINA TOMAS","GROUPE SPORTIF LUGDUNUM"]
["147074N","MERLE JEAN FRANCOIS","GROUPE SPORTIF LUGDUNUM"]
["147110C","MALGOUYARD JEAN PIERRE","BILLARD CLUB AIXOIS"]
["147111D","DUMONT ALAIN","BILLARD CLUB AIXOIS"]
["147113F","HANTZ MICHEL","BILLARD CLUB AIXOIS"]
["147114G","AVET BERNARD","BILLARD CLUB AIXOIS"]
["147132B","SERAYET FREDERIC","AMICALE LAIQUE RICAMARIE"]
["147149V","MAILLARD RENE","BILLARD CLUB DE VILLEFRANCHE"]
["147330R","DUMOULIN LAURENT","LE TAPIS VERT ROANNAIS"]
["147331S","COLLET JEAN CLAUDE","LE TAPIS VERT ROANNAIS"]
["147332T","GELOFFIER MAURICE","LE TAPIS VERT ROANNAIS"]
["147356V","JULLION ANDRE","AMICALE BILLARD CLUB DE DAVEZIEUX"]
["147398Q","MAISSE ROBERT","AMICALE BILLARD CLUB DE DAVEZIEUX"]
["147485K","LARESE PATRICK","ACADEMIE DE BILLARD DE CHASSIEU"]
["147501C","BASTIDA ROBERT","LE TAPIS VERT ROANNAIS"]
["147525D","MANET DOMINIQUE","ASS. SPORTIVE MUNICIPALE ST ETIENNE"]
["147547C","GERARD DANIEL","BILLARD CLUB DE GAILLARD"]
["147555L","DELEPAUT ANDRE","BILLARD CLUB AIXOIS"]
["147591A","GILARDIN JACQUES","BILLARD CLUB MOULINS"]
["147619F","GOLDBACH ERIC","ACADEMIE DE BILLARD D AUBENAS"]
["147707B","OGIER STEPHANE","CHARLEMAGNE SNOOKER CLUB"]
["148023V","AUFFRET MARCEL","BILLARD STELLA THONON"]
["148303Z","BONNEFOND CHRISTIAN","ACADEMIE BILLARD OUEST LYONNAIS"]
["148310G","WOIGNIER ALBERT","BILLARD CLUB ROMANAIS PEAGEOIS"]
["148984P","KLEIN STEPHANE","NIGHT BILLARD CLUB"]
["148985Q","CHAIR MOURAD","NIGHT BILLARD CLUB"]
["149077Q","AUBERT LIBERTO","BILLARD CLUB MOULINS"]
["149078R","DEMARTY ALAIN","BILLARD CLUB MOULINS"]
["149257L","GALLOT RUDY","CLUB DE BILLARD MONTBRISONNAIS"]
["149397N","VACUS KEVIN","VEYRE-MONTON BILLARD CLUB"]
["149406Y","JACQUEMART MICKAEL","VULCAIN 8 POOL"]
["149436F","DUPRE RAMBAUD NATAEL","LES SQUALES"]
["149637Z","GILARDIN SEBASTIEN","BILLARD CLUB MOULINS"]
["149690G","NOEL ROLAND","ACADEMIE DE BILLARD DE LA VALSERINE"]
["149764M","BARSE BRUNO","BILLARD CLUB VICHY"]
["149786L","REBBOH LOUIS","CLUB DE BILLARD MONTBRISONNAIS"]
["149841W","BEAUFILS JEAN PATRICK","CLUB CHAMBERIEN DE BILLARD"]
["149865X","CHANNAUX PATRICK","AMICALE LAIQUE RICAMARIE"]
["149875H","MONTPELLIER BRUNO","BILLARD CLUB 8 POOL EVIAN"]
["149917D","GIRARD FREDERIC","BILLARD CLUB 8 POOL EVIAN"]
["149918E","GARRIDO CARLOS","BILLARD CLUB 8 POOL EVIAN"]
["149951Q","DEZEMPTE MICHEL","BILLARD CLUB DE VILLEFRANCHE"]
["149954T","VALLIN GERARD","AMICALE BILLARD CLUB DE DAVEZIEUX"]
["149988F","BESNIER ALAIN","GROUPE SPORTIF LUGDUNUM"]
["149995N","SILLANS PATRICK","CERCLE DES CHEFS D ATELIER"]
["150007B","PAUVERT JEAN LOUIS","BILLARD CLUB ROMANAIS PEAGEOIS"]
["150014J","BRUNETAUD ALAIN","BILLARD CLUB GRENOBLOIS"]
["150082H","CHANTREAU DIDIER","ACADEMIE ANNECIENNE DE BILLARD"]
["150176K","GROS MARCEL","ACADEMIE DE BILLARD DE CHASSIEU"]
["150253T","LOCCI OLIVIER","BILLARD CLUB 109"]
["150312H","VIRICEL BRUNO","BILLARD CLUB DE SAINT-GALMIER"]
["150468C","COTTIN EMMANUEL","SAINT CHAMOND BILLARD CLUB"]
["150632F","NGAMENI ANACLET","BILLARD CLUB AMICALE CHAPELON"]
["150688R","CHAPUT FRANCOIS","CERCLE DES CHEFS D ATELIER"]
["150689S","CLEMENT JEAN LOUP","CERCLE DES CHEFS D ATELIER"]
["150693X","RAUNET PASCALE","CERCLE DES CHEFS D ATELIER"]
["150869N","CABANET FLORENCE","NIGHT BILLARD CLUB"]
["150870P","LHUILLIER DANIEL","BILLARD CLUB PONTOIS"]
["150876W","BEAUCLAIR JEAN RENE","ACADEMIE DE BILLARD DE LA VALSERINE"]
["150947Y","BESSON JEROME","BILLARD CLUB DE CLARAFOND ARCINE"]
["150948Z","RAY VINCENT","BILLARD CLUB DE CLARAFOND ARCINE"]
["150950B","CHATENOUD ARNAUD","BILLARD CLUB DE CLARAFOND ARCINE"]
["150953E","MOREL FLORENT","BILLARD CLUB DE CLARAFOND ARCINE"]
["151045E","VINOT FRANCOIS","BILLARD CLUB GRENOBLOIS"]
["151151V","VERON PATRICK","BILLARD CLUB MOULINS"]
["151373L","ABLONDI LAURENT","CERCLE DES CHEFS D ATELIER"]
["151374M","ROURE CEDRIC","CERCLE DES CHEFS D ATELIER"]
["151767P","GOSTIAUX MEZIANE","CERCLE DES CHEFS D ATELIER"]
["151771T","BERTHET JACQUES","CERCLE DES CHEFS D ATELIER"]
["152028Y","TRABICHET CHRISTOPHE","BILLARD CLUB 8 POOL EVIAN"]
["152167Z","REDON VALERIE","NIGHT BILLARD CLUB"]
["152190Z","HERRY MIREILLE","NIGHT BILLARD CLUB"]
["152192B","LACROIX DYLAN","NIGHT BILLARD CLUB"]
["152400C","DEFRANOUX FRANCIS","BILLARD CLUB AIXOIS"]
["152401D","BUGIS ANDRE","BILLARD CLUB AIXOIS"]
["152479N","ARMANDI JEAN CLAUDE","BILLARD CLUB MOULINS"]
["152571N","PIGEOL JEROME","VULCAIN 8 POOL"]
["152573Q","PERRIER GERARD","SAINT CHAMOND BILLARD CLUB"]
["152575S","FETTIG SEVERINE","SAINT CHAMOND BILLARD CLUB"]
["152592L","ALTISEN ELIOS","GROUPE SPORTIF LUGDUNUM"]
["152593M","BUISSON JACQUES","GROUPE SPORTIF LUGDUNUM"]
["152601W","TRUANT SEBASTIEN","CERCLE DES CHEFS D ATELIER"]
["152633F","MOREL SYLVAIN","NIGHT BILLARD CLUB"]
["152649Y","COURVOISIER MYRIAM","ACADEMIE DE BILLARD DE CHASSIEU"]
["152651A","BROCHIER PATRICK","ACADEMIE DE BILLARD DE CHASSIEU"]
["152673Z","CARRERES MANUEL","LE TAPIS VERT ROANNAIS"]
["152674A","DUVERGER CHRISTIAN","LE TAPIS VERT ROANNAIS"]
["152780Q","CARAVATI PASCAL","BILLARD CLUB ROMANAIS PEAGEOIS"]
["152852T","TARTARIN MICHEL","BILLARD CLUB DE GAILLARD"]
["152907D","BOURDIER JACQUES","BILLARD CLUB VICHY"]
["152914L","KUSAR HERVE","BILLARD CLUB DE CLARAFOND ARCINE"]
["152956G","ACCETTOLA ELIO","ACADEMIE DE BILLARD DE CHASSIEU"]
["153015W","GORLIER ROLAND","CERCLE DES CHEFS D ATELIER"]
["153046E","PENNEC JEAN CLAUDE","CERCLE DES CHEFS D ATELIER"]
["153073J","SPANGENBERG ALAIN","BILLARD CLUB GRENOBLOIS"]
["153143K","HOSROFIAN EDMOND","CLUB OMNISPORTS DE SAINT FONS"]
["153152V","PHONGSY PHOXAY","BILLARD CLUB LYONNAIS 8 POOL"]
["153217Q","BERRAHOU SOLANGE","ACADEMIE DE BILLARD DE LA VALSERINE"]
["153303J","GOUBET LIONEL","ACADEMIE BILLARD OUEST LYONNAIS"]
["153323F","CHASSAGNE JACQUES","B.S.CLERMONTOIS"]
["153339Y","DONNAT JACKY","CERCLE DES CHEFS D ATELIER"]
["153538P","MICHEL DENIS","CLUB CHAMBERIEN DE BILLARD"]
["153543V","SORU IGNACIO","CLUB CHAMBERIEN DE BILLARD"]
["153544W","DECALF JEAN","CLUB CHAMBERIEN DE BILLARD"]
["153555H","ANDRIEU JEAN PIERRE","BILLARD CLUB GRENOBLOIS"]
["153556J","ANDRIEU EVELYNE","BILLARD CLUB GRENOBLOIS"]
["153560N","MEURISSE JACQUES","BILLARD CLUB GRENOBLOIS"]
["153571A","RACHON CHRISTIAN","VALENCE BILLARD CLUB"]
["153572B","PAPILLON EMILIE","VALENCE BILLARD CLUB"]
["153597D","SAUZON MARC","BILLARD CLUB ROMANAIS PEAGEOIS"]
["153644E","CARDOT MICHEL","ACADEMIE DE BILLARD DE CHASSIEU"]
["153695K","MARTINEZ SERGE","ACADEMIE DE BILLARD DE CHASSIEU"]
["153780C","POIROT THOMAS","BILLARD CLUB ROMANAIS PEAGEOIS"]
["153783F","REFASSI ABDELGHANI","BILLARD CLUB ROMANAIS PEAGEOIS"]
["153804D","GIACOMARRA ENZO","CHARLEMAGNE SNOOKER CLUB"]
["153999Q","VEILLON CORINNE","SAINT CHAMOND BILLARD CLUB"]
["154029Y","BOSQUET HENRI","VALENCE BILLARD CLUB"]
["154058E","SCHAFFRAN SEBASTIEN","CERCLE DES CHEFS D ATELIER"]
["154202L","LUJAN PIERRE","BILLARD CLUB ROMANAIS PEAGEOIS"]
["154624V","POMMIER LUDOVIC","ACADEMIE DE BILLARD DE CHASSIEU"]
["154625W","QUENOT PATRICK","ACADEMIE DE BILLARD DE CHASSIEU"]
["154733N","MILLET MAURICE","CERCLE DES CHEFS D ATELIER"]
["154976C","THIERION DIDIER","CERCLE DES CHEFS D ATELIER"]
["154985M","DUJOUX JEAN YVES","B.S.CLERMONTOIS"]
["155127R","BRUNET GILLES","SAINT CHAMOND BILLARD CLUB"]
["155129T","GRI ALEXANDRE","SAINT CHAMOND BILLARD CLUB"]
["155134Z","RICHIER ROGER","SAINT CHAMOND BILLARD CLUB"]
["155523X","ESPINOSA SEBASTIEN","BILLARD CLUB PONTOIS"]
["155590V","WILLIAMS ARIANE","BILLARD CLUB AIXOIS"]
["155685Y","ROUSSELOT JEAN MARC","ACADEMIE ANNECIENNE DE BILLARD"]
["155700P","KUSAR TONY","BILLARD CLUB DE CLARAFOND ARCINE"]
["155702R","CLERMONT PASCAL","CLUB OMNISPORTS DE SAINT FONS"]
["155784F","DI BELLA STEPHANIE","NIGHT BILLARD CLUB"]
["155793Q","SRUTEK GREG","VULCAIN 8 POOL"]
["155834K","HAINAUT DAVID","BILLARD CLUB AIXOIS"]
["155838P","GENAUDET FLORIAN","BILLARD CLUB 8 POOL EVIAN"]
["155848A","MARLIER JEAN","ACADEMIE DE BILLARD DE CHASSIEU"]
["155850C","SIERRA JUAN","ACADEMIE DE BILLARD DE CHASSIEU"]
["155880K","BOUTET MAYEUL","BILLARD CLUB VICHY"]
["155901H","BERGNES LENNY","BILLARD CLUB PONTOIS"]
["155902J","BRUN CHRISTOPHE","BILLARD CLUB PONTOIS"]
["155903K","GOUTTE LYDIE","BILLARD CLUB PONTOIS"]
["155904L","ORENES LERMA JACKY","BILLARD CLUB PONTOIS"]
["155907P","PAUFIQUE JEAN PAUL","GROUPE SPORTIF LUGDUNUM"]
["155923G","BUISSONNIERE DUSTIN","BILLARD CLUB VICHY"]
["156083F","CUZIN JACQUES","ACADEMIE BILLARD OUEST LYONNAIS"]
["156114P","CALISTRI LIONEL","GROUPE SPORTIF LUGDUNUM"]
["156122Y","FRANCOIS DIDIER","CLUB CHAMBERIEN DE BILLARD"]
["156124A","JAPIOT HUBERT","ACADEMIE DE BILLARD DE CHASSIEU"]
["156212W","DUBROEUCQ PHILIPPE","CHARLEMAGNE SNOOKER CLUB"]
["156213X","GHOMINEJAD KEYVAN","CHARLEMAGNE SNOOKER CLUB"]
["156280V","SIBELLIN GERARD","ACADEMIE DE BILLARD DE CHASSIEU"]
["156334D","VALLOT ROMAIN","BILLARD CLUB DE BOURG EN BRESSE"]
["156368Q","TASSET JEROME","CLUB CHAMBERIEN DE BILLARD"]
["156396W","DERORY SEBASTIEN","VEYRE-MONTON BILLARD CLUB"]
["156425C","DREME BERNARD","ACADEMIE DE BILLARD DE CHASSIEU"]
["156431J","RIVOLIER EMILE","LE TAPIS VERT ROANNAIS"]
["156432K","BOURREAU JEAN LUC","LE TAPIS VERT ROANNAIS"]
["156463T","CAESTEKER MARCEL","BILLARD CLUB ISSOIRE"]
["156507R","GRUET BERNARD","BILLARD CLUB ISSOIRE"]
["156508S","BERCHE JEAN LUC","BILLARD CLUB ISSOIRE"]
["156517C","LEVEQUE PAUL GABRIEL","CERCLE DES CHEFS D ATELIER"]
["156534W","BORGEAT CHRISTIANE","ACADEMIE DE BILLARD DE LA VALSERINE"]
["156554S","CARRION TORRES ALBERTO","CERCLE DES CHEFS D ATELIER"]
["156581X","SUDARA BRUNO","CLUB CHAMBERIEN DE BILLARD"]
["156609C","ROBIN GREGORY","ACADEMIE DE BILLARD DE CHASSIEU"]
["156644Q","MAUCUIT CLAUDE","ACADEMIE DE BILLARD DE CHASSIEU"]
["156663L","HAAS DOMINIQUE","BILLARD CLUB DE SAINT-GALMIER"]
["156788X","DUPAS GILLES","ASS. SPORTIVE MUNICIPALE ST ETIENNE"]
["156918N","LACHAUX BERNARD","LE TAPIS VERT ROANNAIS"]
["156980F","BRUNET MAURICE","BILLARD CLUB DE BOURG EN BRESSE"]
["157067A","ROIG MICHEL","ACADEMIE DE BILLARD D AUBENAS"]
["157080P","VILA VERDE EZEQUIEL","VEYRE-MONTON BILLARD CLUB"]
["157089Z","AMORETTI JACQUES","VALENCE BILLARD CLUB"]
["157148N","THIOT PHILIPPE","BILLARD CLUB GRENOBLOIS"]
["157172P","FAURE ELIE","B.S.CLERMONTOIS"]
["157200V","TALLON JEAN CLAUDE","BILLARD CLUB MONTLUCONNAIS"]
["157214K","SOCKEEL AURORE","DEVIL'S POOL CLUB"]
["157225X","MOUTON ALAIN","CERCLE DES CHEFS D ATELIER"]
["157289R","MALIK HERVE","BILLARD CLUB DE LA PLAINE DU FOREZ"]
["157320A","DI DONATO JEAN","ACAD. DE BILLARD DE SAINT-ETIENNE"]
["157326G","MINARDI ALAIN","GROUPE SPORTIF LUGDUNUM"]
["157347E","PERICAUD ROLAND","VALENCE BILLARD CLUB"]
["157556G","LANDAIS JEAN CLAUDE","BILLARD CLUB MOULINS"]
["157695H","DEMONET ANTOINE","CLUB DE BILLARD MONTBRISONNAIS"]
["157702Q","GALTIER JEAN LUC","ACADEMIE DE BILLARD DE LA VALSERINE"]
["157789K","RUFFET FREDERIC","B.S.CLERMONTOIS"]
["157793P","BELGUERMI NICOLAS","ASS. SPORTIVE MUNICIPALE ST ETIENNE"]
["157824Y","CHASTAGNER PHILIPPE","CERCLE DES CHEFS D ATELIER"]
["157879H","MARTINEZ YOANN","EIGHT'S POOL GAME"]
["157880J","BONTOUX SYLVIE","EIGHT'S POOL GAME"]
["158002R","TROTEMANN PIERRE","VALENCE BILLARD CLUB"]
["158097V","CARRET THALLER EVELYNE","CERCLE DES CHEFS D ATELIER"]
["158166V","VACHERAND JEAN PIERRE","BILLARD STELLA THONON"]
["158168X","SUARD FRANCOISE","BILLARD STELLA THONON"]
["158185Q","BEAUD CHRISTOPHE","CLUB CHAMBERIEN DE BILLARD"]
["158186R","CLARET GEORGES","CLUB CHAMBERIEN DE BILLARD"]
["158189V","DE BORTOLI PATRICK","CLUB CHAMBERIEN DE BILLARD"]
["158191X","LAITHIER GERARD","CLUB CHAMBERIEN DE BILLARD"]
["158193Z","REVERCHON BERNARD","CLUB CHAMBERIEN DE BILLARD"]
["158255R","LOPES ANDRE","BILLARD CLUB 8 POOL EVIAN"]
["158738R","ROYET THOMAS","SAINT CHAMOND BILLARD CLUB"]
["159062T","BABEL STEPHANIE","BILLARD CLUB DE CLARAFOND ARCINE"]
["159063V","ARNAUD JEAN PHILIPPE","BILLARD CLUB DE CLARAFOND ARCINE"]
["159064W","SOCKEEL YANNICK","DEVIL'S POOL CLUB"]
["159065X","SOCKEEL MARIE PIERRE","DEVIL'S POOL CLUB"]
["159121H","RICHET MORGAN","VULCAIN 8 POOL"]
["159122J","GELIBERT ALEXIS","ACADEMIE DE BILLARD DE LA VALSERINE"]
["159123K","GELIBERT MARGAUX","ACADEMIE DE BILLARD DE LA VALSERINE"]
["159156W","DENIS DANIEL","AMIC.SPOR.MONTMARAULTOISE BILLARD"]
["159157X","GRIFFON GILLES","AMIC.SPOR.MONTMARAULTOISE BILLARD"]
["159168J","HUE PHILIPPE","BILLARD CLUB AIXOIS"]
["159235G","DEPUYDT EDDY","VEYRE-MONTON BILLARD CLUB"]
["159237J","COSTA GERARD","BILLARD CLUB AIXOIS"]
["159263M","MOREIRA ALBERTO","VEYRE-MONTON BILLARD CLUB"]
["159347D","BREGRE SEBASTIEN","VULCAIN 8 POOL"]
["159396G","CARENZI ROLLAND","BILLARD CLUB AIXOIS"]
["159482A","JEANTET JEAN CLAUDE","ACADEMIE DE BILLARD DE LA VALSERINE"]
["159584L","PLAT PIERRICK","CLUB DE BILLARD MONTBRISONNAIS"]
["159612R","FAOUEN PATRICK","ACADEMIE BILLARD OUEST LYONNAIS"]
["159641Y","BESSE DANIEL","BILLARD CLUB GRENOBLOIS"]
["159648F","FRECHET JULIEN","BILLARD CLUB GRENOBLOIS"]
["159649G","TERNOY PASCAL","BILLARD CLUB GRENOBLOIS"]
["159700M","IMTIASZ ASHH","BILLARD CLUB LYONNAIS 8 POOL"]
["159763F","CAILLON ANNE CLAIRE","ACADEMIE DE BILLARD DE CHASSIEU"]
["159765H","DOMAS SOPHIE","ACADEMIE DE BILLARD DE CHASSIEU"]
["159766J","MARON ALAIN","ACADEMIE DE BILLARD DE CHASSIEU"]
["159769M","LAMRANI MEHDI","BILLARD CLUB PONTOIS"]
["159789J","BACHELET DANIEL","A.B. DE BOURGOIN-JALLIEU"]
["159790K","BENOIT MICHEL","ACADEMIE DE BILLARD D AUBENAS"]
["159793N","EVERAERT BENJAMIN","VULCAIN 8 POOL"]
["159794P","EVERAERT THOMAS","VULCAIN 8 POOL"]
["159798T","MONTILLET JEAN CLAUDE","ACADEMIE DE BILLARD DE CHASSIEU"]
["159809F","FELIX RENE","ACADEMIE DE BILLARD DE CHASSIEU"]
["159822V","RAMOND VANESSA","VULCAIN 8 POOL"]
["159842R","MARION GERARD","ACAD. DE BILLARD DE SAINT-ETIENNE"]
["159850A","GOYENETCHE STEPHANE","ACADEMIE DE BILLARD DE CHASSIEU"]
["159858J","THANH TRAN","BILLARD CLUB ALBERTVILLE"]
["159866S","ISMALAJ YLBER","BILLARD CLUB 109"]
["159908N","LAVAURS BERNARD","ACADEMIE DE BILLARD DE LA VALSERINE"]
["159910Q","MABON CELINE","CLUB OMNISPORTS DE SAINT FONS"]
["160166T","CORBY JEAN CLAUDE","BILLARD CLUB AIXOIS"]
["160174C","MICHAUD LUC","BILLARD CLUB DE BOURG EN BRESSE"]
["160181K","FERNANDEZ HERRERA GUY","CLUB OMNISPORTS DE SAINT FONS"]
["160186Q","ROSENBERGER MAIA","CERCLE DES CHEFS D ATELIER"]
["160236V","LE GOFF THIERRY","NIGHT BILLARD CLUB"]
["160444W","GOSTIAUX LUCIEN","CERCLE DES CHEFS D ATELIER"]
["160595K","RAMBEAU PHILIPPE","ASS. SPORTIVE MUNICIPALE ST ETIENNE"]
["160605W","BONNARD MARTINE","ACADEMIE DE BILLARD DE CHASSIEU"]
["160643M","BALHAND SEBASTIEN","CLUB CHAMBERIEN DE BILLARD"]
["160681D","DEODATI PIERRE","BILLARD CLUB ROMANAIS PEAGEOIS"]
["160682E","FALLOT EYMERIC","VALENCE BILLARD CLUB"]
["160698X","ROUGET DANIEL","ACADEMIE DE BILLARD DE LA VALSERINE"]
["160730G","BAPST CHRISTIAN","SAINT CHAMOND BILLARD CLUB"]
["160731H","BERTRAND ADRIEN","ACADEMIE DE BILLARD DE CHASSIEU"]
["160742V","JOUBERT ERIC","BILLARD CLUB MONTLUCONNAIS"]
["160749C","VACHER JEAN CLAUDE","BILLARD CLUB DE SAINT-GALMIER"]
["160782N","TESTUD FABIAN","LES SQUALES"]
["160807Q","CHOPIN TANGUY","ASSOCIATION DU LAKE PUB 74"]
["160860Y","IMBERT EVEN","EIGHT'S POOL GAME"]
["160876Q","BAUDIN LILIANE","GROUPE SPORTIF LUGDUNUM"]
["160877R","BOULADE COLETTE","GROUPE SPORTIF LUGDUNUM"]
["160879T","BOUVAIST MARTINE","GROUPE SPORTIF LUGDUNUM"]
["160881W","DUMAS YVES","GROUPE SPORTIF LUGDUNUM"]
["160882X","FURTAK ROLAND","GROUPE SPORTIF LUGDUNUM"]
["160883Y","MALLET LANDRY","GROUPE SPORTIF LUGDUNUM"]
["160905X","LHOMME SYLVAIN","ACADEMIE DE BILLARD D AUBENAS"]
["160912E","FOULTIER JACKY","AMIC.SPOR.MONTMARAULTOISE BILLARD"]
["160972V","FLORET DOMINIQUE","LA CARAMBOLE LISSILOISE"]
["160979C","PFIRSCH MARTINE","ACADEMIE BILLARD OUEST LYONNAIS"]
["161059P","CALYAKA ABDURRAHMAN","SAINT CHAMOND BILLARD CLUB"]
["161067Y","BROCARD GILLES","CERCLE DES CHEFS D ATELIER"]
["161105P","BAUMANN CLAUDE","LE TAPIS VERT ROANNAIS"]
["161258F","ADON MARC OLIVIER","ACADEMIE DE BILLARD DE LA VALSERINE"]
["161278C","CHAFI MAJID","VULCAIN 8 POOL"]
["161384S","CADET DAVID CHRISTOPHER","BILLARD CLUB LYONNAIS 8 POOL"]
["162070N","TRIPLET FREDERIC","CLUB CHAMBERIEN DE BILLARD"]
["162200E","MOREIRA LEONARDO","VEYRE-MONTON BILLARD CLUB"]
["162464R","NAVEL ANGELIQUE","BILLARD CLUB PONTOIS"]
["162465S","RYBAK RAPHAEL","VULCAIN 8 POOL"]
["162474C","GOGORA JACKIE","BILLARD CLUB LYONNAIS 8 POOL"]
["162524G","MASSELOT CEDRIC","BILLARD CLUB ISSOIRE"]
["162532Q","ARTICO JOEL","BILLARD STELLA THONON"]
["162579R","BREGRE MAELYS","VULCAIN 8 POOL"]
["162580S","BREGRE LILOU","VULCAIN 8 POOL"]
["162609Z","SOMVEILLE DOMINIQUE","CLUB CHAMBERIEN DE BILLARD"]
["162644M","BOUZOUZOU HAMID","BILLARD CLUB 109"]
["162697V","FAYOLLE GUY","A.B. DE BOURGOIN-JALLIEU"]
["162698W","KUHN JAMES","A.B. DE BOURGOIN-JALLIEU"]
["162776F","DUVILLARD VINCENT","CHARLEMAGNE SNOOKER CLUB"]
["162803K","KEBE MAMADOU","VALENCE BILLARD CLUB"]
["162814X","BELLET SYLVAIN","CHARLEMAGNE SNOOKER CLUB"]
["162867E","OYONARTE GERARD","BILLARD CLUB ROMANAIS PEAGEOIS"]
["162870H","TOURAINE PATRICE","BILLARD CLUB ROMANAIS PEAGEOIS"]
["162871J","VAN DER HEYDEN JOHN","BILLARD CLUB ROMANAIS PEAGEOIS"]
["162873L","THIVOLLE CECILE","BILLARD CLUB ROMANAIS PEAGEOIS"]
["162874M","THIVOLLE JEAN LOUIS","BILLARD CLUB ROMANAIS PEAGEOIS"]
["162917J","DAUBERT PATRICE","BILLARD CLUB DE VILLEFRANCHE"]
["162918K","VIMAL ALAIN","BILLARD CLUB DE VILLEFRANCHE"]
["162930Y","PEDROTTI LIONEL","BILLARD CLUB ROMANAIS PEAGEOIS"]
["162964K","PONCET ROBERT","SAINT CHAMOND BILLARD CLUB"]
["163037P","BRUNET MARC","B.S.CLERMONTOIS"]
["163038Q","ROBERT HENRY","B.S.CLERMONTOIS"]
["163046Z","PAPET PATRICK","ACADEMIE DE BILLARD DE CHASSIEU"]
["163047A","BORDET LEO","ACADEMIE DE BILLARD DE CHASSIEU"]
["163075F","FERNANDES BENJAMIN","ACADEMIE DE BILLARD DE CHASSIEU"]
["163116A","MAUDUIT DAVID","BILLARD CLUB ROMANAIS PEAGEOIS"]
["163132S","PERUS ERIC ALAIN","LES SQUALES"]
["163159X","LUPO VITO","CLUB CHAMBERIEN DE BILLARD"]
["163160Y","BROCHAND EVELYNE","CERCLE DES CHEFS D ATELIER"]
["163164C","LACAUX TAFFOUREAU STEPHANE","CERCLE DES CHEFS D ATELIER"]
["163244P","PREVOST PATRICK","BILLARD CLUB MONTLUCONNAIS"]
["163262J","MOUGIN PIERRE","ACADEMIE DE BILLARD DE CHASSIEU"]
["163264L","PEYREAUD DENIS","BILLARD STELLA THONON"]
["163282F","AARAB LAHOUSINE","CLUB CHAMBERIEN DE BILLARD"]
["163316S","LAURENT DANIEL","CERCLE DES CHEFS D ATELIER"]
["163317T","SCHOCK ALAIN","CERCLE DES CHEFS D ATELIER"]
["163345Z","GIRARDON ROLAND","LA CARAMBOLE LISSILOISE"]
["163504X","DELORME STEPHANE","BILLARD CLUB LYONNAIS 8 POOL"]
["163507A","GUIRI BAHAEDDINE","BILLARD CLUB DE SAINT-GALMIER"]
["163512F","MARTIN JEAN PAUL","CERCLE DES CHEFS D ATELIER"]
["163543P","CHAPPERT ADRIEN LUDOVIC","CLUB CHAMBERIEN DE BILLARD"]
["163544Q","SILVESTRE JEAN PAUL","CLUB CHAMBERIEN DE BILLARD"]
["163554B","AGNEL FLORENT","LES SQUALES"]
["163592S","BENABDESSELAM YASSINE","BILLARD CLUB LYONNAIS 8 POOL"]
["163670C","HEDOUIN HENRI","BILLARD CLUB AIXOIS"]
["163728Q","JACOULOT CHRISTIAN","ACADEMIE DE BILLARD DE CHASSIEU"]
["163735Y","LAPORTE VALENTIN","VULCAIN 8 POOL"]
["163774Q","VEYRON THOMAS","CLUB CHAMBERIEN DE BILLARD"]
["163788F","BLONDELLE CLEMENT","BILLARD CLUB 8 POOL EVIAN"]
["163857F","BURLET FRANCK","BILLARD CLUB 109"]
["163951H","DELENNE JEAN FRANCOIS","EIGHT'S POOL GAME"]
["163952J","AUVITY SEBASTIEN","EIGHT'S POOL GAME"]
["163954L","JUILLET ALEXI","EIGHT'S POOL GAME"]
["163984T","CHAPUIS MAXIME","BLACKBALL BILLARD CLUB BESAYES 26"]
["163988Y","BAYA FOUAD","DEVIL'S POOL CLUB"]
["164102X","DEVILLARD KARINE","BILLARD CLUB GRENOBLOIS"]
["164109E","BIED CHARRETON OSCAR","ACAD. DE BILLARD DE SAINT-ETIENNE"]
["164144S","MARCON JEAN YVES","SAINT CHAMOND BILLARD CLUB"]
["164148X","GODINOT THIERRY","CERCLE DES CHEFS D ATELIER"]
["164191T","RACHEL BOISGIBAULT","ACADEMIE BILLARD OUEST LYONNAIS"]
["164274J","BARIZZA DANIEL","CLUB CHAMBERIEN DE BILLARD"]
["164275K","ROCCI BERNARD","CLUB CHAMBERIEN DE BILLARD"]
["164276L","DE KEYSER JEAN PIERRE","CLUB CHAMBERIEN DE BILLARD"]
["164355X","MAISONNIAL JEAN LUC","ACAD. DE BILLARD DE SAINT-ETIENNE"]
["164577N","DECOUZON JEAN FRANCOIS","BILLARD CLUB LYONNAIS 8 POOL"]
["164682C","DUPUIS DOMINIQUE","GROUPE SPORTIF LUGDUNUM"]
["164683D","JANIO ALAIN","GROUPE SPORTIF LUGDUNUM"]
["164685F","MIVIERE BERNARD","GROUPE SPORTIF LUGDUNUM"]
["164712K","DUBUY RENAUD","LES SQUALES"]
["164717Q","DEGUILHEN ROMAIN","ACADEMIE DE BILLARD D AUBENAS"]
["164726A","ASTIC JULIAN","BILLARD CLUB ROMANAIS PEAGEOIS"]
["164727B","ABBO SEBASTIAN","CLUB CHAMBERIEN DE BILLARD"]
["164728C","DEMELLIER STEPHANE","CLUB CHAMBERIEN DE BILLARD"]
["164749A","CLAUDON PIERRE YVES","LES SQUALES"]
["164764R","BERNARD MAZZURCO MICHEL","LES SQUALES"]
["164834S","DUBOWYJ MICHEL","ACADEMIE DE BILLARD DE CHASSIEU"]
["164853N","BOUVAT DANIEL","LA CARAMBOLE LISSILOISE"]
["164854P","BREDA CLAUDE","LA CARAMBOLE LISSILOISE"]
["164855Q","BURLET JEAN PAUL","LA CARAMBOLE LISSILOISE"]
["164856R","CAMOUT GILBERT","LA CARAMBOLE LISSILOISE"]
["164857S","CREPEL BENOIT","LA CARAMBOLE LISSILOISE"]
["164858T","DE LA SERNA CESAR","LA CARAMBOLE LISSILOISE"]
["164859V","TERMOZ ROBERT","LA CARAMBOLE LISSILOISE"]
["164876N","BOURJA MOUNIR","BILLARD CLUB LYONNAIS 8 POOL"]
["164924Q","SCHOCH JEAN MARIE","VALENCE BILLARD CLUB"]
["165008G","BUFFERNE CALVIN","AMICALE BILLARD CLUB DE DAVEZIEUX"]
["165321X","STEENHAUT CLEMENTINE","EIGHT'S POOL GAME"]
["165794L","BILLOUX JOHANN","VULCAIN 8 POOL"]
["165809C","FREYBURGER RICHARD","BILLARD CLUB DE VILLEFRANCHE"]
["165810D","KOOMEN PETRUS","BILLARD CLUB DE VILLEFRANCHE"]
["165837H","FLORET MARCELLE","BILLARD STELLA THONON"]
["165861J","VERGORI ROMANO","BILLARD CLUB 8 POOL EVIAN"]
["165888N","GRAND MARGAUX","BILLARD CLUB LYONNAIS 8 POOL"]
["165889P","FABIE GERARD","ACADEMIE DE BILLARD DE CHASSIEU"]
["165890Q","MARTINEZ JOSEPH","ACADEMIE DE BILLARD DE CHASSIEU"]
["165923B","PADROS FREDERIC","BILLARD CLUB LYONNAIS 8 POOL"]
["165940V","BERCHET MOGUET NICOLAS","LA CARAMBOLE LISSILOISE"]
["165944Z","FULCHIRON ULRICH","BILLARD CLUB DE LA PLAINE DU FOREZ"]
["165953J","BIDAULT PASCAL","BILLARD CLUB AIXOIS"]
["165954K","PAUGER JEAN LOUIS","BILLARD CLUB AIXOIS"]
["165955L","VINCENT PHILIPPE","BILLARD CLUB AIXOIS"]
["165964W","ASTIC AURELIEN","BILLARD CLUB ROMANAIS PEAGEOIS"]
["165968A","KROLL HENRI","BILLARD CLUB ROMANAIS PEAGEOIS"]
["165971D","MABILLE DOMINIQUE","BILLARD CLUB ROMANAIS PEAGEOIS"]
["165973F","MORINI MARCEL","BILLARD CLUB ROMANAIS PEAGEOIS"]
["165974G","RENARD DIMITRI","BILLARD CLUB ROMANAIS PEAGEOIS"]
["166052R","LEBRE PHILIPPE","BILLARD CLUB ISSOIRE"]
["166117M","YAZMADJIAN SONIA","CERCLE DES CHEFS D ATELIER"]
["166125W","MAGDELAINE NICOLAS","ACADEMIE DE BILLARD D AUBENAS"]
["166134F","CASTANIER JEAN FRANCOIS","VULCAIN 8 POOL"]
["166170V","JOUFFRAY HENRI","ACADEMIE DE BILLARD DE CHASSIEU"]
["166217W","MORIZET SEBASTIEN","BILLARD CLUB ISSOIRE"]
["166237S","PAQUIER SILVERE","BILLARD CLUB GRENOBLOIS"]
["166264X","TORNIER JORDAN","BILLARD CLUB DE CLARAFOND ARCINE"]
["166265Y","PIGNET BAPTISTE","BILLARD CLUB DE CLARAFOND ARCINE"]
["166303P","JULLIEN NILS","BILLARD CLUB ROMANAIS PEAGEOIS"]
["166366H","MONTAGNON GERARD","AMICALE LAIQUE RICAMARIE"]
["166368K","FERRIOL PATRICE","AMICALE LAIQUE RICAMARIE"]
["166416M","ROBIN JEAN FRANCOIS","CLUB CHAMBERIEN DE BILLARD"]
["166417N","NOURRY AXEL","CLUB CHAMBERIEN DE BILLARD"]
["166428A","IMBERT ELVIS","EIGHT'S POOL GAME"]
["166436J","DUFOUR CEDRIC","CHARLEMAGNE SNOOKER CLUB"]
["166480G","FECHET PASCAL","ACADEMIE DE BILLARD D AUBENAS"]
["166503G","HEDOUIN DOMINIQUE","LA CARAMBOLE LISSILOISE"]
["166504H","FABBRI DOMINIQUE","LA CARAMBOLE LISSILOISE"]
["166505J","FABBRI SABINE","LA CARAMBOLE LISSILOISE"]
["166506K","JACQUEMIN ELISABETH","LA CARAMBOLE LISSILOISE"]
["166507L","LYET JEAN PAUL","LA CARAMBOLE LISSILOISE"]
["166508M","REBOUL MARIE CLAIRE","LA CARAMBOLE LISSILOISE"]
["166509N","REBOUL PATRICK","LA CARAMBOLE LISSILOISE"]
["166510P","ROBERT PIERRE","LA CARAMBOLE LISSILOISE"]
["166516W","CHARRON INGRID","EIGHT'S POOL GAME"]
["166547E","GOUJON VINCENT","BILLARD CLUB AMICALE CHAPELON"]
["166553L","CARON FRANCK","LES SQUALES"]
["166554M","PRAL NINA","LES SQUALES"]
["166555N","POULARD EMMANUEL","LES SQUALES"]
["166579P","DELPLANQUE JEAN PIERRE","BILLARD CLUB DE SAINT-GALMIER"]
["166618G","LEYNAUD VALENTIN","CLUB CHAMBERIEN DE BILLARD"]
["166630V","IMBERT MELVYN","EIGHT'S POOL GAME"]
["166631W","BENSACQ BONTOUX ALICIA","EIGHT'S POOL GAME"]
["166636B","HUSCHARD LOUIS","BILLARD CLUB ALBERTVILLE"]
["166637C","MISCHLER BORIS","EIGHT'S POOL GAME"]
["166654W","GELEZ CHRISTOPHE","BILLARD CLUB DE GAILLARD"]
["166660C","CLAVEL DAMIEN","BILLARD CLUB PONTOIS"]
["166690K","MARTINEZ CHRISTOPHE","BILLARD CLUB DE LA PLAINE DU FOREZ"]
["166692M","BAYON BRUNO","BILLARD CLUB DE LA PLAINE DU FOREZ"]
["166704A","FOUGEROL SESTIER JESSICA","BILLARD CLUB LYONNAIS 8 POOL"]
["166705B","BRANGBOUR MARYACIN","BILLARD CLUB LYONNAIS 8 POOL"]
["166742R","BEDDOUCHE GHALI","ACADEMIE DE BILLARD DE CHASSIEU"]
["166749Z","DUCLOZ NICOLAS","ASSOCIATION DU LAKE PUB 74"]
["166756G","DUPUIS MARC","SAINT CHAMOND BILLARD CLUB"]
["166769W","LUMINET ALEXANDRE","BILLARD CLUB DE SAINT-GALMIER"]
["166783L","FANET HERVE","BILLARD CLUB GRENOBLOIS"]
["166800E","GOURION THOMAS","CERCLE DES CHEFS D ATELIER"]
["166812S","MARTEL BENJAMIN","BLACKBALL CULOZIEN"]
["166813T","BLEIN SEBASTIEN","BLACKBALL CULOZIEN"]
["166839X","DESSE JEAN FRANCOIS","VALENCE BILLARD CLUB"]
["166844C","FLOCH JULIEN","BILLARD CLUB DE LA PLAINE DU FOREZ"]
["166856Q","VICTOR MARTIN","ACADEMIE DE BILLARD DE LA VALSERINE"]
["166881S","FERRO BRUNO","ACADEMIE DE BILLARD DE CHASSIEU"]
["166884W","BRAHIMI BRUNET ADAM","BILLARD CLUB DE BOURG EN BRESSE"]
["166885X","BRAHIMI BRUNET GERMAIN","BILLARD CLUB DE BOURG EN BRESSE"]
["166897K","LANSAQUE JEAN MARIE","BILLARD CLUB DE GAILLARD"]
["166911A","BOTU MATHIEU","ACADEMIE DE BILLARD DE CHASSIEU"]
["166937D","HENRY AGNES","CERCLE DES CHEFS D ATELIER"]
["166949R","MORTELLIER MURIELLE","BILLARD CLUB MOULINS"]
["166950S","REVENIAUD BRUNO","BILLARD CLUB MOULINS"]
[100001,"BLANC 1","LIBRE"]